Effective Date,Department,Supplier Name,Payment Date,Amounts **,Purpose of Spend,Merchant Category,Card Transaction
Statement 19/04/2016 - 17/05/2016,Adults and Communities,Amazon Prime,30/04/2016,79.00,Other Expenditure - General,Continuity/Subscription Merchants,GPC
Statement 19/04/2016 - 17/05/2016,Adults and Communities,Amazon Prime,30/04/2016,79.00,Other Expenditure - General,Continuity/Subscription Merchants,GPC
Statement 19/04/2016 - 17/05/2016,Adults and Communities,Amazon Svcs Europe SAR,11/05/2016,4.47,Other Equipment & Materials - General,Book Stores,GPC
Statement 19/04/2016 - 17/05/2016,Adults and Communities,Amazon UK Marketplace,27/04/2016,18.00,Books - General,Book Stores,GPC
Statement 19/04/2016 - 17/05/2016,Adults and Communities,Amazon UK Marketplace,28/04/2016,55.50,Books - General,Book Stores,GPC
Statement 19/04/2016 - 17/05/2016,Adults and Communities,Amazon UK Marketplace,29/04/2016,14.11,Books - General,Book Stores,GPC
Statement 19/04/2016 - 17/05/2016,Adults and Communities,Amazon UK Marketplace,29/04/2016,25.00,Books - General,Book Stores,GPC
Statement 19/04/2016 - 17/05/2016,Adults and Communities,Amazon UK Marketplace,27/04/2016,9.19,General Equipment - General,Miscellaneous and Specialty Retail Stores,GPC
Statement 19/04/2016 - 17/05/2016,Adults and Communities,Amazon UK Marketplace,28/04/2016,1.94,General Equipment - General,Book Stores,GPC
Statement 19/04/2016 - 17/05/2016,Adults and Communities,Amazon UK Marketplace,06/05/2016,23.98,General Equipment - General,Miscellaneous and Specialty Retail Stores,GPC
Statement 19/04/2016 - 17/05/2016,Adults and Communities,Amazon UK Marketplace,12/05/2016,79.45,General Equipment - General,Miscellaneous and Specialty Retail Stores,GPC
Statement 19/04/2016 - 17/05/2016,Adults and Communities,Amazon UK Marketplace,13/05/2016,64.92,General Equipment - General,Book Stores,GPC
Statement 19/04/2016 - 17/05/2016,Adults and Communities,Amazon UK Marketplace,20/04/2016,26.94,Materials - General,Miscellaneous and Specialty Retail Stores,GPC
Statement 19/04/2016 - 17/05/2016,Adults and Communities,Amazon UK Marketplace,27/04/2016,35.96,Materials - General,Miscellaneous and Specialty Retail Stores,GPC
Statement 19/04/2016 - 17/05/2016,Adults and Communities,Amazon UK Marketplace,27/04/2016,82.08,Materials - General,Miscellaneous and Specialty Retail Stores,GPC
Statement 19/04/2016 - 17/05/2016,Adults and Communities,Amazon UK Marketplace,29/04/2016,4.33,Materials - General,Book Stores,GPC
Statement 19/04/2016 - 17/05/2016,Adults and Communities,Amazon UK Marketplace,29/04/2016,15.08,Materials - General,Miscellaneous and Specialty Retail Stores,GPC
Statement 19/04/2016 - 17/05/2016,Adults and Communities,Amazon UK Marketplace,03/05/2016,43.93,Materials - General,Miscellaneous and Specialty Retail Stores,GPC
Statement 19/04/2016 - 17/05/2016,Adults and Communities,Amazon UK Marketplace,04/05/2016,1.64,Materials - General,Miscellaneous and Specialty Retail Stores,GPC
Statement 19/04/2016 - 17/05/2016,Adults and Communities,Amazon UK Marketplace,05/05/2016,9.04,Materials - General,Miscellaneous and Specialty Retail Stores,GPC
Statement 19/04/2016 - 17/05/2016,Adults and Communities,Amazon UK Marketplace,07/05/2016,35.82,Materials - General,Miscellaneous and Specialty Retail Stores,GPC
Statement 19/04/2016 - 17/05/2016,Adults and Communities,Amazon UK Marketplace,09/05/2016,24.57,Materials - General,Miscellaneous and Specialty Retail Stores,GPC
Statement 19/04/2016 - 17/05/2016,Adults and Communities,Amazon UK Marketplace,09/05/2016,25.38,Materials - General,Miscellaneous and Specialty Retail Stores,GPC
Statement 19/04/2016 - 17/05/2016,Adults and Communities,Amazon UK Marketplace,11/05/2016,22.60,Materials - General,Miscellaneous and Specialty Retail Stores,GPC
Statement 19/04/2016 - 17/05/2016,Adults and Communities,Amazon UK Marketplace,18/04/2016,7.99,Other Equipment & Materials - General,Miscellaneous and Specialty Retail Stores,GPC
Statement 19/04/2016 - 17/05/2016,Adults and Communities,Amazon UK Marketplace,11/05/2016,3.10,Other Equipment & Materials - General,Miscellaneous and Specialty Retail Stores,GPC
Statement 19/04/2016 - 17/05/2016,Adults and Communities,Amazon UK Marketplace,11/05/2016,14.37,Other Equipment & Materials - General,Miscellaneous and Specialty Retail Stores,GPC
Statement 19/04/2016 - 17/05/2016,Adults and Communities,Amazon UK Marketplace,12/05/2016,1.65,Other Equipment & Materials - General,Miscellaneous and Specialty Retail Stores,GPC
Statement 19/04/2016 - 17/05/2016,Adults and Communities,Amazon UK Marketplace,12/05/2016,25.01,Other Equipment & Materials - General,Miscellaneous and Specialty Retail Stores,GPC
Statement 19/04/2016 - 17/05/2016,Adults and Communities,Amazon UK Marketplace,13/05/2016,26.03,Other Equipment & Materials - General,Miscellaneous and Specialty Retail Stores,GPC
Statement 19/04/2016 - 17/05/2016,Adults and Communities,Amazon UK Marketplace,27/04/2016,4.00,Provisions - General,Miscellaneous and Specialty Retail Stores,GPC
Statement 19/04/2016 - 17/05/2016,Adults and Communities,Amazon UK Marketplace,27/04/2016,3.09,Stationery - General,Miscellaneous and Specialty Retail Stores,GPC
Statement 19/04/2016 - 17/05/2016,Adults and Communities,Amazon UK Marketplace,28/04/2016,32.83,Stationery - General,Miscellaneous and Specialty Retail Stores,GPC
Statement 19/04/2016 - 17/05/2016,Adults and Communities,Amazon UK Marketplace,06/05/2016,1.65,Stationery - General,Miscellaneous and Specialty Retail Stores,GPC
Statement 19/04/2016 - 17/05/2016,Adults and Communities,Amazon UK Marketplace,09/05/2016,11.52,Stationery - General,Miscellaneous and Specialty Retail Stores,GPC
Statement 19/04/2016 - 17/05/2016,Adults and Communities,Amazon UK Retail,28/04/2016,28.94,Cleaning Materials - General,Direct Marketers - Other,GPC
Statement 19/04/2016 - 17/05/2016,Adults and Communities,Amazon UK Retail,05/05/2016,18.24,General Equipment - General,Direct Marketers - Other,GPC
Statement 19/04/2016 - 17/05/2016,Adults and Communities,Amazon UK Retail,14/05/2016,8.33,Materials - General,Direct Marketers - Other,GPC
Statement 19/04/2016 - 17/05/2016,Adults and Communities,Amazon UK Retail,20/04/2016,31.92,Other Expenditure - General,Direct Marketers - Other,GPC
Statement 19/04/2016 - 17/05/2016,Adults and Communities,Amazon UK Retail,25/04/2016,4.99,Other Expenditure - General,Direct Marketers - Other,GPC
Statement 19/04/2016 - 17/05/2016,Adults and Communities,Amazon UK Retail,03/05/2016,31.66,Other Expenditure - General,Direct Marketers - Other,GPC
Statement 19/04/2016 - 17/05/2016,Adults and Communities,Amazon UK Retail,03/05/2016,37.96,Other Expenditure - General,Direct Marketers - Other,GPC
Statement 19/04/2016 - 17/05/2016,Adults and Communities,Amazon UK Retail,03/05/2016,8.99,Other Expenditure - General,Direct Marketers - Other,GPC
Statement 19/04/2016 - 17/05/2016,Adults and Communities,Amazon UK Retail,05/05/2016,27.00,Other Expenditure - General,Direct Marketers - Other,GPC
Statement 19/04/2016 - 17/05/2016,Adults and Communities,Amazon UK Retail,05/05/2016,15.98,Other Expenditure - General,Direct Marketers - Other,GPC
Statement 19/04/2016 - 17/05/2016,Adults and Communities,Amazon UK Retail,05/05/2016,31.08,Other Expenditure - General,Direct Marketers - Other,GPC
Statement 19/04/2016 - 17/05/2016,Adults and Communities,Amazon UK Retail,28/04/2016,14.29,Stationery - General,Direct Marketers - Other,GPC
Statement 19/04/2016 - 17/05/2016,Adults and Communities,ARGOS LTD,06/05/2016,10.82,General Equipment - General,Discount Stores,GPC
Statement 19/04/2016 - 17/05/2016,Adults and Communities,ARGOS LTD,12/05/2016,22.49,General Equipment - General,Discount Stores,GPC
Statement 19/04/2016 - 17/05/2016,Adults and Communities,ARGOS LTD,20/04/2016,19.99,Provisions - General,Discount Stores,GPC
Statement 19/04/2016 - 17/05/2016,Adults and Communities,ARGOS RETAIL GROUP,11/05/2016,37.93,Other Equipment & Materials - General,Discount Stores,GPC
Statement 19/04/2016 - 17/05/2016,Adults and Communities,ASDA STORES 4477,28/04/2016,4.75,Materials - General,"Grocery Stores, Supermarkets",GPC
Statement 19/04/2016 - 17/05/2016,Adults and Communities,ASDA STORES 4477,25/04/2016,3.00,Other Equipment & Materials - General,"Grocery Stores, Supermarkets",GPC
Statement 19/04/2016 - 17/05/2016,Adults and Communities,ASDA SUPERSTORE,13/05/2016,17.35,Materials - General,"Grocery Stores, Supermarkets",GPC
Statement 19/04/2016 - 17/05/2016,Adults and Communities,ASDA SUPERSTORE,24/04/2016,4.68,Operational Equipment - General,"Grocery Stores, Supermarkets",GPC
Statement 19/04/2016 - 17/05/2016,Adults and Communities,ASDA SUPERSTORE,06/05/2016,59.40,Postal Services - General,"Grocery Stores, Supermarkets",GPC
Statement 19/04/2016 - 17/05/2016,Adults and Communities,ASDA SUPERSTORE,27/04/2016,11.56,Provisions - General,"Grocery Stores, Supermarkets",GPC
Statement 19/04/2016 - 17/05/2016,Adults and Communities,ASDA SUPERSTORE,28/04/2016,28.50,Provisions - General,"Grocery Stores, Supermarkets",GPC
Statement 19/04/2016 - 17/05/2016,Adults and Communities,ASDA SUPERSTORE,09/05/2016,189.87,Provisions - General,"Grocery Stores, Supermarkets",GPC
Statement 19/04/2016 - 17/05/2016,Adults and Communities,B AND Q 1012,11/05/2016,9.86,Aids & Adaptations - Minor Adaptations,"Building Materials, Lumber Stores",GPC
Statement 19/04/2016 - 17/05/2016,Adults and Communities,B AND Q 1012,19/04/2016,41.38,R & M of Buildings - General,"Building Materials, Lumber Stores",GPC
Statement 19/04/2016 - 17/05/2016,Adults and Communities,B AND Q 1043,13/05/2016,80.15,Materials - General,"Building Materials, Lumber Stores",GPC
Statement 19/04/2016 - 17/05/2016,Adults and Communities,B AND Q 1043,28/04/2016,11.25,R & M of Buildings - General,"Building Materials, Lumber Stores",GPC
Statement 19/04/2016 - 17/05/2016,Adults and Communities,B AND Q 1299,20/04/2016,65.62,Aids & Adaptations - Minor Adaptations,"Building Materials, Lumber Stores",GPC
Statement 19/04/2016 - 17/05/2016,Adults and Communities,B AND Q 1299,29/04/2016,35.78,Aids & Adaptations - Minor Adaptations,"Building Materials, Lumber Stores",GPC
Statement 19/04/2016 - 17/05/2016,Adults and Communities,B&M RETAIL LTD,21/04/2016,49.99,Furniture - General,Discount Stores,GPC
Statement 19/04/2016 - 17/05/2016,Adults and Communities,B&M RETAIL LTD,05/05/2016,49.05,Provisions - General,Discount Stores,GPC
Statement 19/04/2016 - 17/05/2016,Adults and Communities,BC.BASECAMP 2997305,01/05/2016,13.76,IT Equipment - Licences,Membership Organizations-Not Elsewhere Classified,GPC
Statement 19/04/2016 - 17/05/2016,Adults and Communities,BEVINS BUTCHERS,29/04/2016,17.11,Provisions - General,"Miscellaneous Food Stores-Convenience Stores, Mark",GPC
Statement 19/04/2016 - 17/05/2016,Adults and Communities,BOC TEL ORDER,11/05/2016,6.76,General Equipment - General,Chemicals and Allied Products Not Elsewhere Classi,GPC
Statement 19/04/2016 - 17/05/2016,Adults and Communities,CENTRAL ENG COOP,26/04/2016,4.99,Materials - General,Department Stores,GPC
Statement 19/04/2016 - 17/05/2016,Adults and Communities,CENTRAL ENG COOP,16/05/2016,3.94,Other Equipment & Materials - General,Department Stores,GPC
Statement 19/04/2016 - 17/05/2016,Adults and Communities,CENTRAL ENG COOP,18/04/2016,43.73,Provisions - General,Department Stores,GPC
Statement 19/04/2016 - 17/05/2016,Adults and Communities,CENTRAL ENG COOP,19/04/2016,8.64,Provisions - General,Department Stores,GPC
Statement 19/04/2016 - 17/05/2016,Adults and Communities,CENTRAL ENG COOP,21/04/2016,117.01,Provisions - General,Department Stores,GPC
Statement 19/04/2016 - 17/05/2016,Adults and Communities,CENTRAL ENG COOP,21/04/2016,15.09,Provisions - General,Department Stores,GPC
Statement 19/04/2016 - 17/05/2016,Adults and Communities,CENTRAL ENG COOP,24/04/2016,10.96,Provisions - General,Department Stores,GPC
Statement 19/04/2016 - 17/05/2016,Adults and Communities,CENTRAL ENG COOP,26/04/2016,38.50,Provisions - General,Department Stores,GPC
Statement 19/04/2016 - 17/05/2016,Adults and Communities,CENTRAL ENG COOP,27/04/2016,7.48,Provisions - General,Department Stores,GPC
Statement 19/04/2016 - 17/05/2016,Adults and Communities,CENTRAL ENG COOP,02/05/2016,18.48,Provisions - General,Department Stores,GPC
Statement 19/04/2016 - 17/05/2016,Adults and Communities,CENTRAL ENG COOP,05/05/2016,111.07,Provisions - General,Department Stores,GPC
Statement 19/04/2016 - 17/05/2016,Adults and Communities,CENTRAL ENG COOP,06/05/2016,4.18,Provisions - General,Department Stores,GPC
Statement 19/04/2016 - 17/05/2016,Adults and Communities,CENTRAL ENG COOP,07/05/2016,7.00,Provisions - General,Department Stores,GPC
Statement 19/04/2016 - 17/05/2016,Adults and Communities,CENTRAL ENG COOP,09/05/2016,40.89,Provisions - General,Department Stores,GPC
Statement 19/04/2016 - 17/05/2016,Adults and Communities,CENTRAL ENG COOP,12/05/2016,110.37,Provisions - General,Department Stores,GPC
Statement 19/04/2016 - 17/05/2016,Adults and Communities,CENTRAL ENG COOP,16/05/2016,27.47,Provisions - General,Department Stores,GPC
Statement 19/04/2016 - 17/05/2016,Adults and Communities,CHARNWOOD BOROUGH COUNCI,03/05/2016,4.90,Casual/Essential - General,Automobile Parking Lots and Garages,GPC
Statement 19/04/2016 - 17/05/2016,Adults and Communities,CHARNWOOD BOROUGH COUNCI,05/05/2016,6.00,Casual/Essential - General,Automobile Parking Lots and Garages,GPC
Statement 19/04/2016 - 17/05/2016,Adults and Communities,CHARNWOOD BOROUGH COUNCI,11/05/2016,6.00,Casual/Essential - General,Automobile Parking Lots and Garages,GPC
Statement 19/04/2016 - 17/05/2016,Adults and Communities,COBBLERS CORNER,18/04/2016,11.98,General Equipment - General,"Shoe Repair Shops, Shoe Shine Parlors, Hat Cleanin",GPC
Statement 19/04/2016 - 17/05/2016,Adults and Communities,COBBLERS CORNER,25/04/2016,19.99,General Equipment - General,"Shoe Repair Shops, Shoe Shine Parlors, Hat Cleanin",GPC
Statement 19/04/2016 - 17/05/2016,Adults and Communities,CURRY STORES,04/05/2016,99.98,Stationery - General,"RADIO, TELEVISION, AND STEREO STORES (ELECTRONIC STORES)",GPC
Statement 19/04/2016 - 17/05/2016,Adults and Communities,DEMCO EUROPE,13/05/2016,292.90,Furniture - General,Commercial Furniture,GPC
Statement 19/04/2016 - 17/05/2016,Adults and Communities,DUNELM (SOFT FURNISHIN,18/04/2016,8.64,Furniture - General,"Drapery, Window Coverings, and Upholstery Stores",GPC
Statement 19/04/2016 - 17/05/2016,Adults and Communities,E COAST MAIN LN CO LTD,19/04/2016,13.50,Casual/Essential - General,Automobile Parking Lots and Garages,GPC
Statement 19/04/2016 - 17/05/2016,Adults and Communities,EASTMIDLANDSTRAINS,19/04/2016,110.60,Public Transport -  Staff - General,Passenger Railways,GPC
Statement 19/04/2016 - 17/05/2016,Adults and Communities,EASTMIDLANDSTRAINS,04/05/2016,41.25,Public Transport -  Staff - General,Passenger Railways,GPC
Statement 19/04/2016 - 17/05/2016,Adults and Communities,FACEBOOK LHZZL9WAK2,30/04/2016,19.83,Publicity/Marketing - Information Provision,Advertising Services,GPC
Statement 19/04/2016 - 17/05/2016,Adults and Communities,FENWICK LTD LEICESTER,06/05/2016,599.00,Materials - General,Department Stores,GPC
Statement 19/04/2016 - 17/05/2016,Adults and Communities,FITWISE MANAGEMENT,11/05/2016,70.00,Subscriptions - General,Business Services-Not Elsewhere Classified,GPC
Statement 19/04/2016 - 17/05/2016,Adults and Communities,FITWISE MANAGEMENT,11/05/2016,70.00,Subscriptions - General,Business Services-Not Elsewhere Classified,GPC
Statement 19/04/2016 - 17/05/2016,Adults and Communities,FOREIGN EXCHANGE FEE,03/05/2016,0.38,IT Equipment - Licences,Misc-Unknown,GPC
Statement 19/04/2016 - 17/05/2016,Adults and Communities,GRAVELLES,28/04/2016,320.58,General Equipment - General,Laboratory/Medical/Dental/Ophthalmic Hospital Equi,GPC
Statement 19/04/2016 - 17/05/2016,Adults and Communities,GRAVELLES,06/05/2016,320.58,General Equipment - General,Laboratory/Medical/Dental/Ophthalmic Hospital Equi,GPC
Statement 19/04/2016 - 17/05/2016,Adults and Communities,GRAVELLES,09/05/2016,320.58,General Equipment - General,Laboratory/Medical/Dental/Ophthalmic Hospital Equi,GPC
Statement 19/04/2016 - 17/05/2016,Adults and Communities,GRAYS KITCHEN,16/05/2016,5.50,Other Expenditure - General,"Eating Places, Restaurants",GPC
Statement 19/04/2016 - 17/05/2016,Adults and Communities,GRO HM PASSPORT OFFICE,06/05/2016,9.25,Other Expenditure - General,Government Services-Not Elsewhere Classified,GPC
Statement 19/04/2016 - 17/05/2016,Adults and Communities,HALFORDS 0813,19/04/2016,83.32,Materials - General,Bicycle Shops-Sales and Service,GPC
Statement 19/04/2016 - 17/05/2016,Adults and Communities,HANDSET SOLUTIONS,05/05/2016,500.00,Communications Equipment - General,Telecommunication Equipment Including Telephone Sa,GPC
Statement 19/04/2016 - 17/05/2016,Adults and Communities,HANDSET SOLUTIONS,05/05/2016,116.50,Communications Equipment - General,Telecommunication Equipment Including Telephone Sa,GPC
Statement 19/04/2016 - 17/05/2016,Adults and Communities,HEART OF COUNTRY,28/04/2016,122.36,Materials - General,Miscellaneous General Merchandise Stores,GPC
Statement 19/04/2016 - 17/05/2016,Adults and Communities,HOLIDAY INN EXPRESS NORWI,26/04/2016,238.85,Subsistence - General,"Lodging-Hotels, Motels, Resorts",GPC
Statement 19/04/2016 - 17/05/2016,Adults and Communities,HOMEBASE LTD,25/04/2016,19.36,Materials - General,"Building Materials, Lumber Stores",GPC
Statement 19/04/2016 - 17/05/2016,Adults and Communities,HOMEBASE LTD,25/04/2016,27.65,Materials - General,"Building Materials, Lumber Stores",GPC
Statement 19/04/2016 - 17/05/2016,Adults and Communities,HOMEBASE LTD,12/05/2016,68.00,Materials - General,"Building Materials, Lumber Stores",GPC
Statement 19/04/2016 - 17/05/2016,Adults and Communities,HOMEBASE LTD,12/05/2016,8.28,Materials - General,"Building Materials, Lumber Stores",GPC
Statement 19/04/2016 - 17/05/2016,Adults and Communities,HULL CITY TREASURY,09/05/2016,-11.50,Other Expenditure - General,Government Services-Not Elsewhere Classified,GPC
Statement 19/04/2016 - 17/05/2016,Adults and Communities,ICELAND,28/04/2016,15.45,Materials - General,"Grocery Stores, Supermarkets",GPC
Statement 19/04/2016 - 17/05/2016,Adults and Communities,ICELAND,21/04/2016,11.98,Provisions - General,"Grocery Stores, Supermarkets",GPC
Statement 19/04/2016 - 17/05/2016,Adults and Communities,ICELAND,26/04/2016,10.00,Provisions - General,"Grocery Stores, Supermarkets",GPC
Statement 19/04/2016 - 17/05/2016,Adults and Communities,ICELAND,06/05/2016,41.50,Provisions - General,"Grocery Stores, Supermarkets",GPC
Statement 19/04/2016 - 17/05/2016,Adults and Communities,ICELAND,12/05/2016,32.20,Provisions - General,"Grocery Stores, Supermarkets",GPC
Statement 19/04/2016 - 17/05/2016,Adults and Communities,ICELAND,16/05/2016,14.20,Provisions - General,"Grocery Stores, Supermarkets",GPC
Statement 19/04/2016 - 17/05/2016,Adults and Communities,IMAGINE PUBLISHING,05/05/2016,32.46,Books - General,Business Services-Not Elsewhere Classified,GPC
Statement 19/04/2016 - 17/05/2016,Adults and Communities,IZ  Cafe Torte,13/05/2016,1.95,Other Expenditure - General,"Eating Places, Restaurants",GPC
Statement 19/04/2016 - 17/05/2016,Adults and Communities,KINSTON UPON HULL CTY,05/05/2016,11.50,Other Expenditure - General,Government Services-Not Elsewhere Classified,GPC
Statement 19/04/2016 - 17/05/2016,Adults and Communities,KINSTON UPON HULL CTY,10/05/2016,11.50,Other Expenditure - General,Government Services-Not Elsewhere Classified,GPC
Statement 19/04/2016 - 17/05/2016,Adults and Communities,LEIC CITY COUNCIL,20/04/2016,13.00,Other Expenditure - General,Government Services-Not Elsewhere Classified,GPC
Statement 19/04/2016 - 17/05/2016,Adults and Communities,LEIC CITY COUNCIL,20/04/2016,13.00,Other Expenditure - General,Government Services-Not Elsewhere Classified,GPC
Statement 19/04/2016 - 17/05/2016,Adults and Communities,LEIC CITY COUNCIL,25/04/2016,13.00,Other Expenditure - General,Government Services-Not Elsewhere Classified,GPC
Statement 19/04/2016 - 17/05/2016,Adults and Communities,LEIC CITY COUNCIL,25/04/2016,13.00,Other Expenditure - General,Government Services-Not Elsewhere Classified,GPC
Statement 19/04/2016 - 17/05/2016,Adults and Communities,LEIC CITY COUNCIL,26/04/2016,23.00,Other Expenditure - General,Government Services-Not Elsewhere Classified,GPC
Statement 19/04/2016 - 17/05/2016,Adults and Communities,LEIC CITY COUNCIL,04/05/2016,13.00,Other Expenditure - General,Government Services-Not Elsewhere Classified,GPC
Statement 19/04/2016 - 17/05/2016,Adults and Communities,LEIC CITY COUNCIL,04/05/2016,13.00,Other Expenditure - General,Government Services-Not Elsewhere Classified,GPC
Statement 19/04/2016 - 17/05/2016,Adults and Communities,LEIC CITY COUNCIL,04/05/2016,13.00,Other Expenditure - General,Government Services-Not Elsewhere Classified,GPC
Statement 19/04/2016 - 17/05/2016,Adults and Communities,LEIC CITY COUNCIL,04/05/2016,13.00,Other Expenditure - General,Government Services-Not Elsewhere Classified,GPC
Statement 19/04/2016 - 17/05/2016,Adults and Communities,LEIC CITY COUNCIL,05/05/2016,13.00,Other Expenditure - General,Government Services-Not Elsewhere Classified,GPC
Statement 19/04/2016 - 17/05/2016,Adults and Communities,LEIC CITY COUNCIL,09/05/2016,-10.00,Other Expenditure - General,Government Services-Not Elsewhere Classified,GPC
Statement 19/04/2016 - 17/05/2016,Adults and Communities,LEICESTERSHIRE C COUNC,19/04/2016,130.00,Books - General,Government Services-Not Elsewhere Classified,GPC
Statement 19/04/2016 - 17/05/2016,Adults and Communities,LINKEDIN-271 2507954,27/04/2016,227.94,Recruitment Advertising - General,Continuity/Subscription Merchants,GPC
Statement 19/04/2016 - 17/05/2016,Adults and Communities,MAPLIN-206-LOUGHBOROUGH,02/05/2016,10.99,Materials - General,"RADIO, TELEVISION, AND STEREO STORES (ELECTRONIC STORES)",GPC
Statement 19/04/2016 - 17/05/2016,Adults and Communities,MCDONALDS,30/04/2016,3.59,Provisions - General,"Eating Places, Restaurants",GPC
Statement 19/04/2016 - 17/05/2016,Adults and Communities,MERCURY NEWS 63933,03/05/2016,77.10,Newspapers & Periodicals - General,"Grocery Stores, Supermarkets",GPC
Statement 19/04/2016 - 17/05/2016,Adults and Communities,NATIONWIDE HIRE 4 U LTD,29/04/2016,143.52,Casual/Essential - General,Automobile Rental Agency,GPC
Statement 19/04/2016 - 17/05/2016,Adults and Communities,NATIONWIDE HIRE 4 U LTD,29/04/2016,143.52,Casual/Essential - General,Automobile Rental Agency,GPC
Statement 19/04/2016 - 17/05/2016,Adults and Communities,NRS HEALTHCARE,09/05/2016,85.00,Materials - General,Laboratory/Medical/Dental/Ophthalmic Hospital Equi,GPC
Statement 19/04/2016 - 17/05/2016,Adults and Communities,NWLDC CARD PAYMENT,13/05/2016,183.60,Subscriptions - General,Government Services-Not Elsewhere Classified,GPC
Statement 19/04/2016 - 17/05/2016,Adults and Communities,OCADO RETAIL LIMIT,19/04/2016,75.50,Provisions - General,"Miscellaneous Food Stores-Convenience Stores, Mark",GPC
Statement 19/04/2016 - 17/05/2016,Adults and Communities,OCADO RETAIL LIMIT,22/04/2016,75.55,Provisions - General,"Miscellaneous Food Stores-Convenience Stores, Mark",GPC
Statement 19/04/2016 - 17/05/2016,Adults and Communities,OCADO RETAIL LIMIT,30/04/2016,59.49,Provisions - General,"Miscellaneous Food Stores-Convenience Stores, Mark",GPC
Statement 19/04/2016 - 17/05/2016,Adults and Communities,OCADO RETAIL LIMIT,02/05/2016,94.56,Provisions - General,"Miscellaneous Food Stores-Convenience Stores, Mark",GPC
Statement 19/04/2016 - 17/05/2016,Adults and Communities,OCADO RETAIL LIMIT,07/05/2016,133.44,Provisions - General,"Miscellaneous Food Stores-Convenience Stores, Mark",GPC
Statement 19/04/2016 - 17/05/2016,Adults and Communities,OCADO RETAIL LIMIT,09/05/2016,115.47,Provisions - General,"Miscellaneous Food Stores-Convenience Stores, Mark",GPC
Statement 19/04/2016 - 17/05/2016,Adults and Communities,OCADO RETAIL LIMIT,14/05/2016,115.90,Provisions - General,"Miscellaneous Food Stores-Convenience Stores, Mark",GPC
Statement 19/04/2016 - 17/05/2016,Adults and Communities,OCADO RETAIL LIMIT,16/05/2016,112.19,Provisions - General,"Miscellaneous Food Stores-Convenience Stores, Mark",GPC
Statement 19/04/2016 - 17/05/2016,Adults and Communities,OFFICE-POWER.NET,13/05/2016,83.89,Stationery - General,"Stationery, Office, and School Supply Stores",GPC
Statement 19/04/2016 - 17/05/2016,Adults and Communities,ORANGE TREE GROUP,05/05/2016,50.00,Subsistence - General,"Drinking Places (Alcoholic Beverages)-Bars, Tavern",GPC
Statement 19/04/2016 - 17/05/2016,Adults and Communities,ORCHARD KENNELS,09/05/2016,1500.00,Materials - General,Pet Shops-Pet Food and Supplies,GPC
Statement 19/04/2016 - 17/05/2016,Adults and Communities,PAYPAL  ANGLOBRANDS,20/04/2016,94.32,Materials - General,"Artist Supply Stores, Craft Shops",GPC
Statement 19/04/2016 - 17/05/2016,Adults and Communities,PAYPAL  ARMINCARPET,22/04/2016,399.00,Materials - General,Antique Shops,GPC
Statement 19/04/2016 - 17/05/2016,Adults and Communities,PAYPAL  ASADKHAN117,10/05/2016,6.50,IT Equipment - Maintenance,Miscellaneous and Specialty Retail Stores,GPC
Statement 19/04/2016 - 17/05/2016,Adults and Communities,PAYPAL  BETTER,28/04/2016,0.99,IT Equipment - Maintenance,"RADIO, TELEVISION, AND STEREO STORES (ELECTRONIC STORES)",GPC
Statement 19/04/2016 - 17/05/2016,Adults and Communities,PAYPAL  CJSHORTLAND,05/05/2016,2.99,Revenue Financing of Capital - General,Professional Services-Not Elsewhere Classified,GPC
Statement 19/04/2016 - 17/05/2016,Adults and Communities,PAYPAL  DECLANGIBBS,03/05/2016,19.99,IT Equipment - Maintenance,Computer and Data Processing Services,GPC
Statement 19/04/2016 - 17/05/2016,Adults and Communities,PAYPAL  EUROFFICELT,18/04/2016,199.99,General Equipment - General,"Stationery, Office, and School Supply Stores",GPC
Statement 19/04/2016 - 17/05/2016,Adults and Communities,PAYPAL  FASTKEYSERV,27/04/2016,30.08,General Equipment - General,Advertising Services,GPC
Statement 19/04/2016 - 17/05/2016,Adults and Communities,PAYPAL  FASTKEYSERV,06/05/2016,24.08,General Equipment - General,Advertising Services,GPC
Statement 19/04/2016 - 17/05/2016,Adults and Communities,PAYPAL  FESTIVELIGH,22/04/2016,11.99,Revenue Financing of Capital - General,Miscellaneous House Furnishing Specialty Shops,GPC
Statement 19/04/2016 - 17/05/2016,Adults and Communities,PAYPAL  GOTHICGREEN,06/05/2016,14.50,Revenue Financing of Capital - General,"Hobby, Toy, and Game Shops",GPC
Statement 19/04/2016 - 17/05/2016,Adults and Communities,PAYPAL  HERTSSPECIA,22/04/2016,269.50,Materials - General,"Sewing, Needlework, Fabric, and Piece Goods Stores",GPC
Statement 19/04/2016 - 17/05/2016,Adults and Communities,PAYPAL  HOIPTELECOM,16/05/2016,6.00,Communications Equipment - General,Telecommunication Service Including Local and Long,GPC
Statement 19/04/2016 - 17/05/2016,Adults and Communities,PAYPAL  MARKITLABEL,09/05/2016,35.96,IT Equipment - Maintenance,Computer and Data Processing Services,GPC
Statement 19/04/2016 - 17/05/2016,Adults and Communities,PAYPAL  MEDIEVALCRA ME,05/05/2016,85.88,Materials - General,"Artist Supply Stores, Craft Shops",GPC
Statement 19/04/2016 - 17/05/2016,Adults and Communities,PAYPAL  NEILWAZAT,28/04/2016,66.00,Materials - General,Miscellaneous and Specialty Retail Stores,GPC
Statement 19/04/2016 - 17/05/2016,Adults and Communities,PAYPAL  PCROSSMAN,05/05/2016,288.00,Materials - General,Miscellaneous Apparel and Accessory Stores,GPC
Statement 19/04/2016 - 17/05/2016,Adults and Communities,PAYPAL  PRIMROSE,05/05/2016,460.91,Revenue Financing of Capital - General,"Lawn and Garden Supply Stores, Nurseries",GPC
Statement 19/04/2016 - 17/05/2016,Adults and Communities,PAYPAL  SOUTHERNSWO,05/05/2016,47.49,Revenue Financing of Capital - General,Miscellaneous and Specialty Retail Stores,GPC
Statement 19/04/2016 - 17/05/2016,Adults and Communities,PAYPAL  SSINTERNATI,28/04/2016,21.95,Materials - General,Antique Shops,GPC
Statement 19/04/2016 - 17/05/2016,Adults and Communities,PAYPAL  SUFFOLKLATC,28/04/2016,25.00,Materials - General,Antique Shops,GPC
Statement 19/04/2016 - 17/05/2016,Adults and Communities,PAYPAL  TECHNOLOGYV,25/04/2016,11.58,Materials - General,"RADIO, TELEVISION, AND STEREO STORES (ELECTRONIC STORES)",GPC
Statement 19/04/2016 - 17/05/2016,Adults and Communities,PAYPAL  TING HUI,10/05/2016,32.50,IT Equipment - Maintenance,Variety Stores,GPC
Statement 19/04/2016 - 17/05/2016,Adults and Communities,PAYPAL  TRADEDISCOU,26/04/2016,13.02,General Equipment - General,"Accounting, Auditing, and Bookkeeping Services",GPC
Statement 19/04/2016 - 17/05/2016,Adults and Communities,PAYPAL  TRADEDISCOU,26/04/2016,3.72,Postal Services - General,"Accounting, Auditing, and Bookkeeping Services",GPC
Statement 19/04/2016 - 17/05/2016,Adults and Communities,PAYPAL  UKOFFICEDIR,20/04/2016,51.66,Stationery - General,"Stationery, Office, and School Supply Stores",GPC
Statement 19/04/2016 - 17/05/2016,Adults and Communities,PAYPAL  UKOFFICEDIR,20/04/2016,51.66,Stationery - General,"Stationery, Office, and School Supply Stores",GPC
Statement 19/04/2016 - 17/05/2016,Adults and Communities,PAYPAL  UKOFFICEDIR,20/04/2016,51.66,Stationery - General,"Stationery, Office, and School Supply Stores",GPC
Statement 19/04/2016 - 17/05/2016,Adults and Communities,PAYPAL  VALUEPRODUC,22/04/2016,17.10,General Equipment - General,"Medical Services, Health Practitioners-Not Elsewhe",GPC
Statement 19/04/2016 - 17/05/2016,Adults and Communities,PAYPAL  WIELANDFORG,05/05/2016,280.00,Materials - General,Antique Shops,GPC
Statement 19/04/2016 - 17/05/2016,Adults and Communities,PLANTABOX.CO.UK,25/04/2016,314.96,Revenue Financing of Capital - General,"Gift, Card, Novelty, and Souvenir Shops",GPC
Statement 19/04/2016 - 17/05/2016,Adults and Communities,PONDEN HOME,20/04/2016,39.00,Furniture - General,Miscellaneous House Furnishing Specialty Shops,GPC
Statement 19/04/2016 - 17/05/2016,Adults and Communities,POST OFFICE COUNTER,05/05/2016,26.40,Postal Services - General,Postage Stamps,GPC
Statement 19/04/2016 - 17/05/2016,Adults and Communities,POUNDLAND LTD 1142,04/05/2016,4.17,Other Equipment & Materials - General,Discount Stores,GPC
Statement 19/04/2016 - 17/05/2016,Adults and Communities,RAWLINS T/A MATS4U,20/04/2016,125.99,Materials - General,Floor Coverings   Stores,GPC
Statement 19/04/2016 - 17/05/2016,Adults and Communities,ROYAL MAIL,06/05/2016,321.00,Postal Services - General,Postage Stamps,GPC
Statement 19/04/2016 - 17/05/2016,Adults and Communities,ROYAL MAIL,06/05/2016,179.00,Postal Services - General,Postage Stamps,GPC
Statement 19/04/2016 - 17/05/2016,Adults and Communities,ROYAL MAIL,06/05/2016,358.00,Postal Services - General,Postage Stamps,GPC
Statement 19/04/2016 - 17/05/2016,Adults and Communities,RYMAN,22/04/2016,6.65,Stationery - General,"Stationery, Office, and School Supply Stores",GPC
Statement 19/04/2016 - 17/05/2016,Adults and Communities,RYMAN,11/05/2016,34.95,Stationery - General,"Stationery, Office, and School Supply Stores",GPC
Statement 19/04/2016 - 17/05/2016,Adults and Communities,SAFE.CO.UK,26/04/2016,67.00,Stationery - General,"Stationery, Office, and School Supply Stores",GPC
Statement 19/04/2016 - 17/05/2016,Adults and Communities,SAFESTORE LIMITED,09/05/2016,117.00,Other Expenditure - General,Public Warehousing,GPC
Statement 19/04/2016 - 17/05/2016,Adults and Communities,SAINSBURY'S S/MKT,19/04/2016,16.90,Operational Equipment - General,"Grocery Stores, Supermarkets",GPC
Statement 19/04/2016 - 17/05/2016,Adults and Communities,SAINSBURY'S S/MKT,18/04/2016,15.85,Provisions - General,"Grocery Stores, Supermarkets",GPC
Statement 19/04/2016 - 17/05/2016,Adults and Communities,SAINSBURYS S/MKTS,11/05/2016,14.00,General Equipment - General,"Grocery Stores, Supermarkets",GPC
Statement 19/04/2016 - 17/05/2016,Adults and Communities,Sainsburys S/mkts,11/05/2016,17.60,Materials - General,"Grocery Stores, Supermarkets",GPC
Statement 19/04/2016 - 17/05/2016,Adults and Communities,SAINSBURYS S/MKTS,12/05/2016,13.00,Operational Equipment - General,"Grocery Stores, Supermarkets",GPC
Statement 19/04/2016 - 17/05/2016,Adults and Communities,SCREWFIX,09/05/2016,31.74,Aids & Adaptations - Minor Adaptations,"Building Materials, Lumber Stores",GPC
Statement 19/04/2016 - 17/05/2016,Adults and Communities,SCREWFIX,12/05/2016,104.10,Display/Conservn/Exhibitions - Conservation,"Building Materials, Lumber Stores",GPC
Statement 19/04/2016 - 17/05/2016,Adults and Communities,SCREWFIX,11/05/2016,10.83,General Equipment - General,"Building Materials, Lumber Stores",GPC
Statement 19/04/2016 - 17/05/2016,Adults and Communities,SCREWFIX,03/05/2016,34.13,R & M of Buildings - General,"Building Materials, Lumber Stores",GPC
Statement 19/04/2016 - 17/05/2016,Adults and Communities,SELECT PUBLISHER LTD,21/04/2016,25.00,Books - General,Miscellaneous Publishing and  Printing,GPC
Statement 19/04/2016 - 17/05/2016,Adults and Communities,SURVEYMONKEY.COM,12/05/2016,21.67,IT Equipment - Licences,Computer Network/Information Services,GPC
Statement 19/04/2016 - 17/05/2016,Adults and Communities,TALKTALK BUSINESS,27/04/2016,39.21,Telephones - General,Telecommunication Service Including Local and Long,GPC
Statement 19/04/2016 - 17/05/2016,Adults and Communities,TAMWORTH FIREPLACE LTD,04/05/2016,918.00,R & M of Buildings - General,Plumbing and Heating Equipment,GPC
Statement 19/04/2016 - 17/05/2016,Adults and Communities,TARRO LOUNGE,11/05/2016,6.15,Other Expenditure - General,"Eating Places, Restaurants",GPC
Statement 19/04/2016 - 17/05/2016,Adults and Communities,TESCO STORE 2846,19/04/2016,31.06,Other Equipment & Materials - General,"Grocery Stores, Supermarkets",GPC
Statement 19/04/2016 - 17/05/2016,Adults and Communities,TESCO STORES 2044,23/04/2016,17.00,Materials - General,"Grocery Stores, Supermarkets",GPC
Statement 19/04/2016 - 17/05/2016,Adults and Communities,TESCO STORES 5182,21/04/2016,3.55,Materials - General,"Grocery Stores, Supermarkets",GPC
Statement 19/04/2016 - 17/05/2016,Adults and Communities,TESCO STORES 5182,19/04/2016,111.82,Provisions - General,"Grocery Stores, Supermarkets",GPC
Statement 19/04/2016 - 17/05/2016,Adults and Communities,TESCO STORES 5182,22/04/2016,77.43,Provisions - General,"Grocery Stores, Supermarkets",GPC
Statement 19/04/2016 - 17/05/2016,Adults and Communities,TESCO STORES 5182,25/04/2016,93.05,Provisions - General,"Grocery Stores, Supermarkets",GPC
Statement 19/04/2016 - 17/05/2016,Adults and Communities,TESCO STORES 5182,28/04/2016,73.30,Provisions - General,"Grocery Stores, Supermarkets",GPC
Statement 19/04/2016 - 17/05/2016,Adults and Communities,TESCO STORES 5182,02/05/2016,72.31,Provisions - General,"Grocery Stores, Supermarkets",GPC
Statement 19/04/2016 - 17/05/2016,Adults and Communities,TESCO STORES 5182,06/05/2016,91.54,Provisions - General,"Grocery Stores, Supermarkets",GPC
Statement 19/04/2016 - 17/05/2016,Adults and Communities,TESCO STORES 5182,13/05/2016,84.09,Provisions - General,"Grocery Stores, Supermarkets",GPC
Statement 19/04/2016 - 17/05/2016,Adults and Communities,TESCO STORES 5182,16/05/2016,176.92,Provisions - General,"Grocery Stores, Supermarkets",GPC
Statement 19/04/2016 - 17/05/2016,Adults and Communities,TESCO STORES 5902,19/04/2016,20.12,Other Equipment & Materials - General,"Grocery Stores, Supermarkets",GPC
Statement 19/04/2016 - 17/05/2016,Adults and Communities,TESCO STORES 5902,20/04/2016,38.12,Other Equipment & Materials - General,"Grocery Stores, Supermarkets",GPC
Statement 19/04/2016 - 17/05/2016,Adults and Communities,TESCO-STORES 6573,10/05/2016,8.00,Materials - General,"Grocery Stores, Supermarkets",GPC
Statement 19/04/2016 - 17/05/2016,Adults and Communities,THE CNTRY CAND CO LTD VT,28/04/2016,137.70,Materials - General,"Gift, Card, Novelty, and Souvenir Shops",GPC
Statement 19/04/2016 - 17/05/2016,Adults and Communities,THE RANGE,26/04/2016,24.14,Materials - General,Department Stores,GPC
Statement 19/04/2016 - 17/05/2016,Adults and Communities,THE WORKS,25/04/2016,16.67,Other Equipment & Materials - General,Discount Stores,GPC
Statement 19/04/2016 - 17/05/2016,Adults and Communities,THOMPSON & MORGAN,06/05/2016,63.95,Materials - General,"Lawn and Garden Supply Stores, Nurseries",GPC
Statement 19/04/2016 - 17/05/2016,Adults and Communities,THREE-BILLPAY(CC),11/05/2016,19.99,Other Expenditure - General,Telecommunication Service Including Local and Long,GPC
Statement 19/04/2016 - 17/05/2016,Adults and Communities,THREE-BILLPAY(CC),11/05/2016,9.99,Telephones - Mobile Phones,Telecommunication Service Including Local and Long,GPC
Statement 19/04/2016 - 17/05/2016,Adults and Communities,TOM TOON AND DAUGHERS,05/05/2016,135.00,General Equipment - General,"Equipment Rental and Leasing Services, Tool Rental",GPC
Statement 19/04/2016 - 17/05/2016,Adults and Communities,TRAINLINE,27/04/2016,61.51,Other Expenditure - General,Passenger Railways,GPC
Statement 19/04/2016 - 17/05/2016,Adults and Communities,TRAINLINE,18/04/2016,265.20,Public Transport -  Staff - General,Passenger Railways,GPC
Statement 19/04/2016 - 17/05/2016,Adults and Communities,TRAINLINE,27/04/2016,113.83,Public Transport -  Staff - General,Passenger Railways,GPC
Statement 19/04/2016 - 17/05/2016,Adults and Communities,TRAINLINE,03/05/2016,20.25,Public Transport -  Staff - General,Passenger Railways,GPC
Statement 19/04/2016 - 17/05/2016,Adults and Communities,UPT EM MELTON MOWBRAY TR,28/04/2016,3.50,Casual/Essential - General,Automobile Parking Lots and Garages,GPC
Statement 19/04/2016 - 17/05/2016,Adults and Communities,VARSITY LOUGHBOROUGH,13/05/2016,72.95,Subsistence - General,"Eating Places, Restaurants",GPC
Statement 19/04/2016 - 17/05/2016,Adults and Communities,VERDON TIMBER GROUP LI,21/04/2016,40.95,Aids & Adaptations - Minor Adaptations,"Building Materials, Lumber Stores",GPC
Statement 19/04/2016 - 17/05/2016,Adults and Communities,VERDON TIMBER GROUP LI,21/04/2016,64.80,Aids & Adaptations - Minor Adaptations,"Building Materials, Lumber Stores",GPC
Statement 19/04/2016 - 17/05/2016,Adults and Communities,WELCOME BREAK,29/04/2016,118.00,Subsistence - General,"Lodging-Hotels, Motels, Resorts",GPC
Statement 19/04/2016 - 17/05/2016,Adults and Communities,WH SMITH,09/05/2016,11.66,Newspapers & Periodicals - General,News Dealers and Newsstands,GPC
Statement 19/04/2016 - 17/05/2016,Adults and Communities,WICKES,19/04/2016,56.64,Revenue Financing of Capital - General,"Building Materials, Lumber Stores",GPC
Statement 19/04/2016 - 17/05/2016,Adults and Communities,WICKES HINCKLEY,11/05/2016,8.32,Grounds Maint-Non Contract - General,"Building Materials, Lumber Stores",GPC
Statement 19/04/2016 - 17/05/2016,Adults and Communities,WILKO RETAIL LIMIT,09/05/2016,22.82,Display/Conservn/Exhibitions - Conservation,Household Appliance Stores,GPC
Statement 19/04/2016 - 17/05/2016,Adults and Communities,WILKO RETAIL LIMIT,19/04/2016,8.95,Display/Conservn/Exhibitions - Exhibitions,Household Appliance Stores,GPC
Statement 19/04/2016 - 17/05/2016,Adults and Communities,WILKO RETAIL LIMIT,20/04/2016,1.75,Display/Conservn/Exhibitions - Exhibitions,Household Appliance Stores,GPC
Statement 19/04/2016 - 17/05/2016,Adults and Communities,WILKO RETAIL LIMIT,25/04/2016,20.05,General Equipment - General,Household Appliance Stores,GPC
Statement 19/04/2016 - 17/05/2016,Adults and Communities,WILKO RETAIL LIMIT,27/04/2016,3.75,Materials - General,Household Appliance Stores,GPC
Statement 19/04/2016 - 17/05/2016,Adults and Communities,WILKO RETAIL LIMIT,27/04/2016,81.90,Materials - General,Household Appliance Stores,GPC
Statement 19/04/2016 - 17/05/2016,Adults and Communities,WILKO RETAIL LIMIT,26/04/2016,2.50,Stationery - General,Household Appliance Stores,GPC
Statement 19/04/2016 - 17/05/2016,Adults and Communities,WM MORRISON 054,21/04/2016,66.27,Materials - General,"Grocery Stores, Supermarkets",GPC
Statement 19/04/2016 - 17/05/2016,Adults and Communities,WM MORRISON 054,28/04/2016,141.46,Provisions - General,"Grocery Stores, Supermarkets",GPC
Statement 19/04/2016 - 17/05/2016,Adults and Communities,WM MORRISON 054,30/04/2016,102.03,Provisions - General,"Grocery Stores, Supermarkets",GPC
Statement 19/04/2016 - 17/05/2016,Adults and Communities,WM MORRISON 054,05/05/2016,124.75,Provisions - General,"Grocery Stores, Supermarkets",GPC
Statement 19/04/2016 - 17/05/2016,Adults and Communities,WM MORRISON 054,11/05/2016,43.03,Provisions - General,"Grocery Stores, Supermarkets",GPC
Statement 19/04/2016 - 17/05/2016,Adults and Communities,WM MORRISON 054,13/05/2016,68.15,Provisions - General,"Grocery Stores, Supermarkets",GPC
Statement 19/04/2016 - 17/05/2016,Adults and Communities,WM MORRISONS,29/04/2016,43.96,Provisions - General,"Grocery Stores, Supermarkets",GPC
Statement 19/04/2016 - 17/05/2016,Adults and Communities,WM MORRISONS,09/05/2016,67.55,Provisions - General,"Grocery Stores, Supermarkets",GPC
Statement 19/04/2016 - 17/05/2016,Adults and Communities,WM MORRISONS,16/05/2016,18.00,Provisions - General,"Grocery Stores, Supermarkets",GPC
Statement 19/04/2016 - 17/05/2016,Adults and Communities,WOWCHER,25/04/2016,8.99,General Equipment - General,"Books, Periodicals, and Newspapers",GPC
Statement 19/04/2016 - 17/05/2016,Adults and Communities,WOWCHER,25/04/2016,15.99,General Equipment - General,"Books, Periodicals, and Newspapers",GPC
Statement 19/04/2016 - 17/05/2016,Adults and Communities,WOWCHER,25/04/2016,22.99,General Equipment - General,"Books, Periodicals, and Newspapers",GPC
Statement 19/04/2016 - 17/05/2016,Adults and Communities,WP-STAMPS DIRECT L,16/05/2016,12.53,Stationery - General,"Stationery, Office, and School Supply Stores",GPC
Statement 19/04/2016 - 17/05/2016,Adults and Communities,WP-WARWICKSHIRE CO,09/05/2016,20.64,Other Expenditure - General,Government Services-Not Elsewhere Classified,GPC
Statement 19/04/2016 - 17/05/2016,Adults and Communities,WWW.BATTERY-FORCE.CO.U,27/04/2016,29.50,Materials - General,Hardware Stores,GPC
Statement 19/04/2016 - 17/05/2016,Adults and Communities,WWW.BEAUCARE.COM,21/04/2016,26.58,General Equipment - General,"Medical Services, Health Practitioners-Not Elsewhe",GPC
Statement 19/04/2016 - 17/05/2016,Adults and Communities,WWW.BRABANTIA.COM,25/04/2016,42.50,General Equipment - General,Miscellaneous House Furnishing Specialty Shops,GPC
Statement 19/04/2016 - 17/05/2016,Adults and Communities,WWW.JOHNLEWIS.COM,04/05/2016,100.10,Materials - General,Department Stores,GPC
Statement 19/04/2016 - 17/05/2016,Adults and Communities,WWW.NCPC.ORG.UK,28/04/2016,27.50,Publicity/Marketing - General,Charitable and Social Service Organizations,GPC
Statement 19/04/2016 - 17/05/2016,Adults and Communities,WWW.OFCOM.ORG.UK,09/05/2016,75.00,Other Services - Inspection Fees,Professional Services-Not Elsewhere Classified,GPC
Statement 19/04/2016 - 17/05/2016,Adults and Communities,WWW.OFFICEFURNITUREONL,06/05/2016,356.00,General Equipment - General,"Stationery, Office, and School Supply Stores",GPC
Statement 19/04/2016 - 17/05/2016,Adults and Communities,WWW.OFFICEFURNITUREONL,06/05/2016,356.00,General Equipment - General,"Stationery, Office, and School Supply Stores",GPC
Statement 19/04/2016 - 17/05/2016,Adults and Communities,WWW.OFFICEMONSTER.,13/05/2016,44.00,General Equipment - General,"Stationery, Office, and School Supply Stores",GPC
Statement 19/04/2016 - 17/05/2016,Adults and Communities,WWW.PLASTIC-ID.COM,04/05/2016,115.50,Stationery - General,"Stationary, Office Supplies, Printing and Writing",GPC
Statement 19/04/2016 - 17/05/2016,Adults and Communities,WWW.PRISONS.ORG.UK,21/04/2016,98.48,Books - General,Book Stores,GPC
Statement 19/04/2016 - 17/05/2016,Adults and Communities,WWW.REDSPOTTEDHANK,26/04/2016,14.08,Other Expenditure - General,Passenger Railways,GPC
Statement 19/04/2016 - 17/05/2016,Adults and Communities,WWW.ROYALMAIL.COM,11/05/2016,474.73,Postal Services - General,Postage Stamps,GPC
Statement 19/04/2016 - 17/05/2016,Adults and Communities,WWW.STAPLES.CO.UK,25/04/2016,12.06,Stationery - General,"Stationery, Office, and School Supply Stores",GPC
Statement 19/04/2016 - 17/05/2016,Adults and Communities,WWW.VIKING-DIRECT.CO.U,19/04/2016,72.00,Stationery - General,"Stationary, Office Supplies, Printing and Writing",GPC
Statement 19/04/2016 - 17/05/2016,C&YPS-Non Delegated,ADEPT TELECOM,05/05/2016,16.74,Telephones - General,Telecommunication Service Including Local and Long,GPC
Statement 19/04/2016 - 17/05/2016,C&YPS-Non Delegated,AIRASIA - AKCKPNVH6701,18/04/2016,82.72,Other Expenditure - Legal Expenses,"Air Carriers, Airlines",GPC
Statement 19/04/2016 - 17/05/2016,C&YPS-Non Delegated,AIRBNB,09/05/2016,309.00,Training Expenses - General,"Lodging-Hotels, Motels, Resorts",GPC
Statement 19/04/2016 - 17/05/2016,C&YPS-Non Delegated,ALDEN ELECTRICAL LTD,11/04/2016,45.00,Operational Equipment - General,Electrical Contractors,GPC
Statement 19/04/2016 - 17/05/2016,C&YPS-Non Delegated,ALDI,09/05/2016,66.66,Operational Equipment - General,"Grocery Stores, Supermarkets",GPC
Statement 19/04/2016 - 17/05/2016,C&YPS-Non Delegated,ALDI,18/04/2016,21.17,Other Expenditure - General,"Grocery Stores, Supermarkets",GPC
Statement 19/04/2016 - 17/05/2016,C&YPS-Non Delegated,ALDI,25/04/2016,25.56,Other Expenditure - General,"Grocery Stores, Supermarkets",GPC
Statement 19/04/2016 - 17/05/2016,C&YPS-Non Delegated,ALDI,09/05/2016,27.70,Other Expenditure - General,"Grocery Stores, Supermarkets",GPC
Statement 19/04/2016 - 17/05/2016,C&YPS-Non Delegated,ALDI,19/04/2016,96.37,Provisions - General,"Grocery Stores, Supermarkets",GPC
Statement 19/04/2016 - 17/05/2016,C&YPS-Non Delegated,ALDI,19/04/2016,4.15,Provisions - General,"Grocery Stores, Supermarkets",GPC
Statement 19/04/2016 - 17/05/2016,C&YPS-Non Delegated,ALDI,25/04/2016,93.32,Provisions - General,"Grocery Stores, Supermarkets",GPC
Statement 19/04/2016 - 17/05/2016,C&YPS-Non Delegated,Amazon UK Marketplace,16/05/2016,80.37,IT Equipment - General,Book Stores,GPC
Statement 19/04/2016 - 17/05/2016,C&YPS-Non Delegated,Amazon UK Marketplace,28/04/2016,21.40,Materials - General,Book Stores,GPC
Statement 19/04/2016 - 17/05/2016,C&YPS-Non Delegated,Amazon UK Marketplace,05/05/2016,50.37,Materials - General,Miscellaneous and Specialty Retail Stores,GPC
Statement 19/04/2016 - 17/05/2016,C&YPS-Non Delegated,Amazon UK Marketplace,11/05/2016,19.79,Materials - General,Miscellaneous and Specialty Retail Stores,GPC
Statement 19/04/2016 - 17/05/2016,C&YPS-Non Delegated,Amazon UK Marketplace,20/04/2016,50.00,Stationery - General,Miscellaneous and Specialty Retail Stores,GPC
Statement 19/04/2016 - 17/05/2016,C&YPS-Non Delegated,Amazon UK Retail,12/05/2016,19.30,Materials - General,Direct Marketers - Other,GPC
Statement 19/04/2016 - 17/05/2016,C&YPS-Non Delegated,Amazon UK Retail,05/05/2016,74.55,Other Expenditure - General,Direct Marketers - Other,GPC
Statement 19/04/2016 - 17/05/2016,C&YPS-Non Delegated,Amazon UK Retail,09/05/2016,15.39,Other Expenditure - General,Direct Marketers - Other,GPC
Statement 19/04/2016 - 17/05/2016,C&YPS-Non Delegated,Amazon UK Retail,12/05/2016,25.99,Other Expenditure - General,Direct Marketers - Other,GPC
Statement 19/04/2016 - 17/05/2016,C&YPS-Non Delegated,ARGOS DIRECT,29/04/2016,-8.95,General Equipment - General,Discount Stores,GPC
Statement 19/04/2016 - 17/05/2016,C&YPS-Non Delegated,ARGOS DIRECT,06/05/2016,-219.99,General Equipment - General,Discount Stores,GPC
Statement 19/04/2016 - 17/05/2016,C&YPS-Non Delegated,ARGOS LTD,20/04/2016,220.43,Materials - General,Discount Stores,GPC
Statement 19/04/2016 - 17/05/2016,C&YPS-Non Delegated,ARGOS LTD,21/04/2016,64.99,Materials - General,Discount Stores,GPC
Statement 19/04/2016 - 17/05/2016,C&YPS-Non Delegated,ARGOS LTD,13/05/2016,39.99,Materials - General,Discount Stores,GPC
Statement 19/04/2016 - 17/05/2016,C&YPS-Non Delegated,ARGOS LTD,12/05/2016,-35.99,Provisions - General,Discount Stores,GPC
Statement 19/04/2016 - 17/05/2016,C&YPS-Non Delegated,ARGOS RETAIL GROUP,25/04/2016,111.62,Other Equipment & Materials - General,Discount Stores,GPC
Statement 19/04/2016 - 17/05/2016,C&YPS-Non Delegated,ARGOS RETAIL GROUP,28/04/2016,393.92,Other Transfer Payments - Section 23 Grants,Discount Stores,GPC
Statement 19/04/2016 - 17/05/2016,C&YPS-Non Delegated,ARGOS RETAIL GROUP,12/05/2016,71.98,Provisions - General,Discount Stores,GPC
Statement 19/04/2016 - 17/05/2016,C&YPS-Non Delegated,ASDA STORES,11/05/2016,4.00,Subsistence - General,"Grocery Stores, Supermarkets",GPC
Statement 19/04/2016 - 17/05/2016,C&YPS-Non Delegated,ASDA SUPERSTORE,22/04/2016,18.49,Materials - General,"Grocery Stores, Supermarkets",GPC
Statement 19/04/2016 - 17/05/2016,C&YPS-Non Delegated,ASDA SUPERSTORE,22/04/2016,13.00,Materials - General,"Grocery Stores, Supermarkets",GPC
Statement 19/04/2016 - 17/05/2016,C&YPS-Non Delegated,ASDA SUPERSTORE,12/05/2016,11.99,Materials - General,"Grocery Stores, Supermarkets",GPC
Statement 19/04/2016 - 17/05/2016,C&YPS-Non Delegated,ASDA SUPERSTORE,21/04/2016,32.19,Provisions - General,"Grocery Stores, Supermarkets",GPC
Statement 19/04/2016 - 17/05/2016,C&YPS-Non Delegated,ASDA SUPERSTORE,27/04/2016,127.16,Provisions - General,"Grocery Stores, Supermarkets",GPC
Statement 19/04/2016 - 17/05/2016,C&YPS-Non Delegated,ASDA SUPERSTORE,09/05/2016,40.35,Provisions - General,"Grocery Stores, Supermarkets",GPC
Statement 19/04/2016 - 17/05/2016,C&YPS-Non Delegated,ASDA SUPERSTORE,10/05/2016,6.34,Provisions - General,"Grocery Stores, Supermarkets",GPC
Statement 19/04/2016 - 17/05/2016,C&YPS-Non Delegated,B AND Q 1157,29/04/2016,16.20,General Equipment - General,"Building Materials, Lumber Stores",GPC
Statement 19/04/2016 - 17/05/2016,C&YPS-Non Delegated,B&M RETAIL LTD,25/04/2016,17.59,Provisions - General,Discount Stores,GPC
Statement 19/04/2016 - 17/05/2016,C&YPS-Non Delegated,B&Q DIRECT,10/05/2016,62.50,General Equipment - General,"Building Materials, Lumber Stores",GPC
Statement 19/04/2016 - 17/05/2016,C&YPS-Non Delegated,BOTTLE KILN RETAIL,13/05/2016,55.00,Materials - General,"Gift, Card, Novelty, and Souvenir Shops",GPC
Statement 19/04/2016 - 17/05/2016,C&YPS-Non Delegated,BRITISH PSYCHO SOC,26/04/2016,179.00,Other Equipment & Materials - General,"Medical Services, Health Practitioners-Not Elsewhe",GPC
Statement 19/04/2016 - 17/05/2016,C&YPS-Non Delegated,BT BILL PAYMENT 1,04/05/2016,115.05,IT Equipment - Rental,Telecommunication Equipment Including Telephone Sa,GPC
Statement 19/04/2016 - 17/05/2016,C&YPS-Non Delegated,BT BILL PAYMENT 2,19/04/2016,13.81,Telephones - General,Telecommunication Equipment Including Telephone Sa,GPC
Statement 19/04/2016 - 17/05/2016,C&YPS-Non Delegated,BT BILL PAYMENT 2,20/04/2016,57.30,Telephones - General,Telecommunication Equipment Including Telephone Sa,GPC
Statement 19/04/2016 - 17/05/2016,C&YPS-Non Delegated,BT BILL PAYMENT 2,20/04/2016,36.86,Telephones - General,Telecommunication Equipment Including Telephone Sa,GPC
Statement 19/04/2016 - 17/05/2016,C&YPS-Non Delegated,BT BILL PAYMENT 2,20/04/2016,82.16,Telephones - General,Telecommunication Equipment Including Telephone Sa,GPC
Statement 19/04/2016 - 17/05/2016,C&YPS-Non Delegated,BT BILL PAYMENT 2,20/04/2016,55.89,Telephones - General,Telecommunication Equipment Including Telephone Sa,GPC
Statement 19/04/2016 - 17/05/2016,C&YPS-Non Delegated,BT BILL PAYMENT 2,20/04/2016,18.82,Telephones - General,Telecommunication Equipment Including Telephone Sa,GPC
Statement 19/04/2016 - 17/05/2016,C&YPS-Non Delegated,BT BILL PAYMENT 2,29/04/2016,174.50,Telephones - General,Telecommunication Equipment Including Telephone Sa,GPC
Statement 19/04/2016 - 17/05/2016,C&YPS-Non Delegated,BT PAY BY PHONE,26/04/2016,153.90,IT Equipment - Rental,Telecommunication Service Including Local and Long,GPC
Statement 19/04/2016 - 17/05/2016,C&YPS-Non Delegated,CAFE ESPANOL,21/04/2016,286.50,Subsistence - General,"Eating Places, Restaurants",GPC
Statement 19/04/2016 - 17/05/2016,C&YPS-Non Delegated,CARD FACTORY,25/04/2016,5.00,Other Expenditure - General,"Gift, Card, Novelty, and Souvenir Shops",GPC
Statement 19/04/2016 - 17/05/2016,C&YPS-Non Delegated,CARD FACTORY,09/05/2016,4.96,Other Expenditure - General,"Gift, Card, Novelty, and Souvenir Shops",GPC
Statement 19/04/2016 - 17/05/2016,C&YPS-Non Delegated,CENTRAL CO-OP RETA,13/05/2016,8.06,Materials - General,Department Stores,GPC
Statement 19/04/2016 - 17/05/2016,C&YPS-Non Delegated,CENTRAL ENG COOP,20/04/2016,6.48,Other Equipment & Materials - General,Department Stores,GPC
Statement 19/04/2016 - 17/05/2016,C&YPS-Non Delegated,CENTRAL ENG COOP,21/04/2016,16.42,Other Equipment & Materials - General,Department Stores,GPC
Statement 19/04/2016 - 17/05/2016,C&YPS-Non Delegated,CENTRAL ENG COOP,05/05/2016,4.62,Other Equipment & Materials - General,Department Stores,GPC
Statement 19/04/2016 - 17/05/2016,C&YPS-Non Delegated,CENTRAL ENG COOP,27/04/2016,1.00,Subsistence - General,Department Stores,GPC
Statement 19/04/2016 - 17/05/2016,C&YPS-Non Delegated,CENTRAL ENG COOP,09/05/2016,4.50,Training Expenses - General,Department Stores,GPC
Statement 19/04/2016 - 17/05/2016,C&YPS-Non Delegated,CURRYS ONLINE,10/05/2016,332.50,Other Transfer Payments - Leaving Care Grants,"RADIO, TELEVISION, AND STEREO STORES (ELECTRONIC STORES)",GPC
Statement 19/04/2016 - 17/05/2016,C&YPS-Non Delegated,DE MONTFORT EXPERTISE LTD,04/05/2016,313.43,Other Transfer Payments - Sector 17- Other,"Colleges, Universities, Professional Schools, and",GPC
Statement 19/04/2016 - 17/05/2016,C&YPS-Non Delegated,EAST MIDLANDS MARKET HAR,03/05/2016,11.00,Casual/Essential - General,Automobile Parking Lots and Garages,GPC
Statement 19/04/2016 - 17/05/2016,C&YPS-Non Delegated,EAST MIDLANDS TRAI,03/05/2016,55.00,Casual/Essential - General,Passenger Railways,GPC
Statement 19/04/2016 - 17/05/2016,C&YPS-Non Delegated,EASTMIDLANDSTRAINS,05/05/2016,146.90,Casual/Essential - General,Passenger Railways,GPC
Statement 19/04/2016 - 17/05/2016,C&YPS-Non Delegated,EB GRID 3 EXPERT ONE,07/05/2016,41.67,Training Expenses - General,Business Services-Not Elsewhere Classified,GPC
Statement 19/04/2016 - 17/05/2016,C&YPS-Non Delegated,ESPO,19/04/2016,260.30,Display/Conservn/Exhibitions - General,Government Services-Not Elsewhere Classified,GPC
Statement 19/04/2016 - 17/05/2016,C&YPS-Non Delegated,ESPO,12/05/2016,158.69,Stationery - General,Government Services-Not Elsewhere Classified,GPC
Statement 19/04/2016 - 17/05/2016,C&YPS-Non Delegated,F1K (EAST MIDLANDS),26/04/2016,53.04,Other Expenditure - General,RECREATION SERVICES--NOT ELSEWHERE CLASSIFIED,GPC
Statement 19/04/2016 - 17/05/2016,C&YPS-Non Delegated,FACEBOOK E8ZBV86L52,02/05/2016,40.01,Publicity/Marketing - Information Provision,Advertising Services,GPC
Statement 19/04/2016 - 17/05/2016,C&YPS-Non Delegated,FACEBOOK K8D869NL52,20/04/2016,20.00,Publicity/Marketing - Information Provision,Advertising Services,GPC
Statement 19/04/2016 - 17/05/2016,C&YPS-Non Delegated,FACEBOOK SAY2V82L52,30/04/2016,15.89,Publicity/Marketing - Information Provision,Advertising Services,GPC
Statement 19/04/2016 - 17/05/2016,C&YPS-Non Delegated,FHONE FOR ME,22/04/2016,30.00,Materials - General,"RADIO, TELEVISION, AND STEREO STORES (ELECTRONIC STORES)",GPC
Statement 19/04/2016 - 17/05/2016,C&YPS-Non Delegated,FLYBE       2674069828936,08/05/2016,119.98,Casual/Essential - General,"Air Carriers, Airlines",GPC
Statement 19/04/2016 - 17/05/2016,C&YPS-Non Delegated,FOREIGN EXCHANGE FEE,05/05/2016,2.95,Other Transfer Payments - Section 23 Grants,Misc-Unknown,GPC
Statement 19/04/2016 - 17/05/2016,C&YPS-Non Delegated,GLOUCESTERSHIRE CC,13/05/2016,50.00,Training Expenses - General,Government Services-Not Elsewhere Classified,GPC
Statement 19/04/2016 - 17/05/2016,C&YPS-Non Delegated,GOOSEBERRY BUSH,04/05/2016,239.65,Other Transfer Payments - Section 23 Grants,Child Care Services,GPC
Statement 19/04/2016 - 17/05/2016,C&YPS-Non Delegated,GREENACRES OUTDOORS LTD,26/04/2016,45.00,General Equipment - General,"Lawn and Garden Supply Stores, Nurseries",GPC
Statement 19/04/2016 - 17/05/2016,C&YPS-Non Delegated,GREGGS S2052,18/04/2016,4.45,Subsistence - General,Bakeries,GPC
Statement 19/04/2016 - 17/05/2016,C&YPS-Non Delegated,GRO HM PASSPORT OFFICE,10/05/2016,9.25,Other Transfer Payments - Section 23 Grants,Government Services-Not Elsewhere Classified,GPC
Statement 19/04/2016 - 17/05/2016,C&YPS-Non Delegated,GRO HM PASSPORT OFFICE,28/04/2016,9.25,Other Transfer Payments - Section 24,Government Services-Not Elsewhere Classified,GPC
Statement 19/04/2016 - 17/05/2016,C&YPS-Non Delegated,HAWGRIP NURSERIES,25/04/2016,27.64,Materials - General,"Lawn and Garden Supply Stores, Nurseries",GPC
Statement 19/04/2016 - 17/05/2016,C&YPS-Non Delegated,HEALTH & CARE PROFESSI,27/04/2016,315.00,Other Equipment & Materials - General,Government Services-Not Elsewhere Classified,GPC
Statement 19/04/2016 - 17/05/2016,C&YPS-Non Delegated,HILTON,21/04/2016,217.50,Conference - General,Hilton Hotels,GPC
Statement 19/04/2016 - 17/05/2016,C&YPS-Non Delegated,HILTON,21/04/2016,500.00,Conference - General,Hilton Hotels,GPC
Statement 19/04/2016 - 17/05/2016,C&YPS-Non Delegated,HILTON,21/04/2016,500.00,Conference - General,Hilton Hotels,GPC
Statement 19/04/2016 - 17/05/2016,C&YPS-Non Delegated,HMCOURTS-SERVICE.G,05/05/2016,80.00,Other Expenditure - General,Fines,GPC
Statement 19/04/2016 - 17/05/2016,C&YPS-Non Delegated,HMCOURTS-SERVICE.G,21/04/2016,15.00,Other Transfer Payments - Section 24,Fines,GPC
Statement 19/04/2016 - 17/05/2016,C&YPS-Non Delegated,HOME BARGAINS,25/04/2016,10.39,Provisions - General,Hardware Stores,GPC
Statement 19/04/2016 - 17/05/2016,C&YPS-Non Delegated,HTTP://WWW.DERBYSHIRE.,26/04/2016,560.00,Other Expenditure - General,Government Services-Not Elsewhere Classified,GPC
Statement 19/04/2016 - 17/05/2016,C&YPS-Non Delegated,INDEED TEL+35312545907,01/05/2016,79.83,Other Equipment & Materials - General,Business Services-Not Elsewhere Classified,GPC
Statement 19/04/2016 - 17/05/2016,C&YPS-Non Delegated,KFC - LOUGHBOROUGH,20/04/2016,8.17,Subsistence - General,Fast-Food Restaurants (Quick Payment Service Pilot,GPC
Statement 19/04/2016 - 17/05/2016,C&YPS-Non Delegated,LCC CATERING SERVICES,25/04/2016,3.78,Other Expenditure - General,Government Services-Not Elsewhere Classified,GPC
Statement 19/04/2016 - 17/05/2016,C&YPS-Non Delegated,LEIC CITY COUNCIL,22/04/2016,13.00,Other Expenditure - General,Government Services-Not Elsewhere Classified,GPC
Statement 19/04/2016 - 17/05/2016,C&YPS-Non Delegated,LEIC CITY COUNCIL,22/04/2016,13.00,Other Expenditure - General,Government Services-Not Elsewhere Classified,GPC
Statement 19/04/2016 - 17/05/2016,C&YPS-Non Delegated,LEIC CITY COUNCIL,21/04/2016,13.00,Other Transfer Payments - Section 23 Grants,Government Services-Not Elsewhere Classified,GPC
Statement 19/04/2016 - 17/05/2016,C&YPS-Non Delegated,LEIC CITY COUNCIL,21/04/2016,13.00,Other Transfer Payments - Section 23 Grants,Government Services-Not Elsewhere Classified,GPC
Statement 19/04/2016 - 17/05/2016,C&YPS-Non Delegated,LEIC CITY COUNCIL,21/04/2016,23.00,Other Transfer Payments - Section 23 Grants,Government Services-Not Elsewhere Classified,GPC
Statement 19/04/2016 - 17/05/2016,C&YPS-Non Delegated,LEIC CITY COUNCIL,29/04/2016,-20.00,Other Transfer Payments - Section 23 Grants,Government Services-Not Elsewhere Classified,GPC
Statement 19/04/2016 - 17/05/2016,C&YPS-Non Delegated,LEIC CITY COUNCIL,06/05/2016,13.00,Other Transfer Payments - Section 24,Government Services-Not Elsewhere Classified,GPC
Statement 19/04/2016 - 17/05/2016,C&YPS-Non Delegated,LEICESTER ROWENA G,22/04/2016,11.49,Materials - General,"Lawn and Garden Supply Stores, Nurseries",GPC
Statement 19/04/2016 - 17/05/2016,C&YPS-Non Delegated,LEICESTERSHIRE C COUNC,13/05/2016,11.00,Other Expenditure - General,Government Services-Not Elsewhere Classified,GPC
Statement 19/04/2016 - 17/05/2016,C&YPS-Non Delegated,LEICESTERSHIRE C COUNC,13/05/2016,11.00,Other Expenditure - General,Government Services-Not Elsewhere Classified,GPC
Statement 19/04/2016 - 17/05/2016,C&YPS-Non Delegated,LEICESTERSHIRE C COUNC,28/04/2016,11.00,Other Transfer Payments - Section 23 Grants,Government Services-Not Elsewhere Classified,GPC
Statement 19/04/2016 - 17/05/2016,C&YPS-Non Delegated,LIDL UK,12/05/2016,2.66,Cleaning Materials - General,"Grocery Stores, Supermarkets",GPC
Statement 19/04/2016 - 17/05/2016,C&YPS-Non Delegated,LIDL UK,09/05/2016,66.61,Provisions - General,"Grocery Stores, Supermarkets",GPC
Statement 19/04/2016 - 17/05/2016,C&YPS-Non Delegated,LIDL UK,12/05/2016,51.86,Provisions - General,"Grocery Stores, Supermarkets",GPC
Statement 19/04/2016 - 17/05/2016,C&YPS-Non Delegated,LIDL UK,16/05/2016,28.19,Provisions - General,"Grocery Stores, Supermarkets",GPC
Statement 19/04/2016 - 17/05/2016,C&YPS-Non Delegated,LINKEDIN-270 1465444,21/04/2016,227.94,Other Expenditure - General,Continuity/Subscription Merchants,GPC
Statement 19/04/2016 - 17/05/2016,C&YPS-Non Delegated,MCDONALDS,26/04/2016,10.37,Provisions - General,Fast-Food Restaurants (Quick Payment Service Pilot,GPC
Statement 19/04/2016 - 17/05/2016,C&YPS-Non Delegated,MCDONALDS,20/04/2016,1.79,Subsistence - General,Fast-Food Restaurants (Quick Payment Service Pilot,GPC
Statement 19/04/2016 - 17/05/2016,C&YPS-Non Delegated,MCDONALDS,10/05/2016,1.39,Subsistence - General,"Eating Places, Restaurants",GPC
Statement 19/04/2016 - 17/05/2016,C&YPS-Non Delegated,MDN WELCB/WAITROSE,28/04/2016,2.20,Provisions - General,"Miscellaneous Food Stores-Convenience Stores, Mark",GPC
Statement 19/04/2016 - 17/05/2016,C&YPS-Non Delegated,MIKE BS SECURITY LOCKSMIT,27/04/2016,4.50,General Equipment - General,Business Services-Not Elsewhere Classified,GPC
Statement 19/04/2016 - 17/05/2016,C&YPS-Non Delegated,NAS UK,22/04/2016,60.00,Other Services - General,Charitable and Social Service Organizations,GPC
Statement 19/04/2016 - 17/05/2016,C&YPS-Non Delegated,NCC INCOME,29/04/2016,28.80,Other Transfer Payments - Section 23 Grants,Government Services-Not Elsewhere Classified,GPC
Statement 19/04/2016 - 17/05/2016,C&YPS-Non Delegated,NCP LIMITED,25/04/2016,6.00,Casual/Essential - General,Automobile Parking Lots and Garages,GPC
Statement 19/04/2016 - 17/05/2016,C&YPS-Non Delegated,NCP LIMITED,06/05/2016,8.00,Casual/Essential - General,Automobile Parking Lots and Garages,GPC
Statement 19/04/2016 - 17/05/2016,C&YPS-Non Delegated,NUMBER 17 LTD,25/04/2016,180.00,Training Expenses - General,"Lodging-Hotels, Motels, Resorts",GPC
Statement 19/04/2016 - 17/05/2016,C&YPS-Non Delegated,OFFICIALRECORDCOUK,13/05/2016,15.98,Schools Agency staff - Teaching Staff,"Management, Consulting and Public Relations Servic",GPC
Statement 19/04/2016 - 17/05/2016,C&YPS-Non Delegated,OFFICIALRECORDCOUK,13/05/2016,15.98,Schools Agency staff - Teaching Staff,"Management, Consulting and Public Relations Servic",GPC
Statement 19/04/2016 - 17/05/2016,C&YPS-Non Delegated,ORDER19167,04/05/2016,22.95,Display/Conservn/Exhibitions - General,"Music Stores-Musical Instruments, Pianos, Sheet Mu",GPC
Statement 19/04/2016 - 17/05/2016,C&YPS-Non Delegated,PARKING PAYMENT: 29,18/04/2016,2.60,Schools Agency staff - Teaching Staff,Professional Services-Not Elsewhere Classified,GPC
Statement 19/04/2016 - 17/05/2016,C&YPS-Non Delegated,PARKLANDS LEISURE,16/05/2016,31.20,Subsistence - General,"Membership Clubs (Sports, Recreation, Athletic), C",GPC
Statement 19/04/2016 - 17/05/2016,C&YPS-Non Delegated,PARTY PIECES COFFEE HOUS,22/04/2016,9.47,Subsistence - General,"Drinking Places (Alcoholic Beverages)-Bars, Tavern",GPC
Statement 19/04/2016 - 17/05/2016,C&YPS-Non Delegated,POST OFFICE COUNTER,10/05/2016,110.96,Provisions - General,Postage Stamps,GPC
Statement 19/04/2016 - 17/05/2016,C&YPS-Non Delegated,PREMIER INN44019165,27/04/2016,206.50,Subsistence - General,PREMIER TRAVEL,GPC
Statement 19/04/2016 - 17/05/2016,C&YPS-Non Delegated,RICHARD AND INGER MEE,12/05/2016,5.70,Other Expenditure - General,"Miscellaneous Food Stores-Convenience Stores, Mark",GPC
Statement 19/04/2016 - 17/05/2016,C&YPS-Non Delegated,ROYAL MAIL,05/05/2016,110.00,Other Expenditure - General,Postage Stamps,GPC
Statement 19/04/2016 - 17/05/2016,C&YPS-Non Delegated,ROYAL SCHOOLS OF M,12/05/2016,41.50,Materials - General,Charitable and Social Service Organizations,GPC
Statement 19/04/2016 - 17/05/2016,C&YPS-Non Delegated,ROYAL SCHOOLS OF M,12/05/2016,30.00,Materials - General,Charitable and Social Service Organizations,GPC
Statement 19/04/2016 - 17/05/2016,C&YPS-Non Delegated,ROYAL SCHOOLS OF M,12/05/2016,30.00,Materials - General,Charitable and Social Service Organizations,GPC
Statement 19/04/2016 - 17/05/2016,C&YPS-Non Delegated,RYANAIR     22400000TVD4H,05/05/2016,40.76,Other Transfer Payments - Section 23 Grants,RYANAIR,GPC
Statement 19/04/2016 - 17/05/2016,C&YPS-Non Delegated,RYMAN,27/04/2016,5.00,Stationery - General,"Stationery, Office, and School Supply Stores",GPC
Statement 19/04/2016 - 17/05/2016,C&YPS-Non Delegated,SAAB PROFESSIONAL LTD,26/04/2016,19.70,Other Expenditure - General,"Dentists, Orthodontists",GPC
Statement 19/04/2016 - 17/05/2016,C&YPS-Non Delegated,SAINSBURY'S S/MKT,18/04/2016,8.20,Materials - General,"Grocery Stores, Supermarkets",GPC
Statement 19/04/2016 - 17/05/2016,C&YPS-Non Delegated,SAINSBURY'S S/MKT,18/04/2016,4.75,Materials - General,"Grocery Stores, Supermarkets",GPC
Statement 19/04/2016 - 17/05/2016,C&YPS-Non Delegated,SAINSBURY'S S/MKT,25/04/2016,43.50,Materials - General,"Grocery Stores, Supermarkets",GPC
Statement 19/04/2016 - 17/05/2016,C&YPS-Non Delegated,SAINSBURY'S S/MKT,27/04/2016,7.19,Provisions - General,"Grocery Stores, Supermarkets",GPC
Statement 19/04/2016 - 17/05/2016,C&YPS-Non Delegated,SAINSBURYS S/MKTS,20/04/2016,9.30,Materials - General,"Grocery Stores, Supermarkets",GPC
Statement 19/04/2016 - 17/05/2016,C&YPS-Non Delegated,SAINSBURYS S/MKTS,11/05/2016,4.90,Materials - General,"Grocery Stores, Supermarkets",GPC
Statement 19/04/2016 - 17/05/2016,C&YPS-Non Delegated,SAINSBURYS S/MKTS,12/05/2016,23.15,Materials - General,"Grocery Stores, Supermarkets",GPC
Statement 19/04/2016 - 17/05/2016,C&YPS-Non Delegated,Sainsburys S/mkts,20/04/2016,129.72,Provisions - General,"Grocery Stores, Supermarkets",GPC
Statement 19/04/2016 - 17/05/2016,C&YPS-Non Delegated,SAINSBURYS S/MKTS,20/04/2016,53.85,Provisions - General,"Grocery Stores, Supermarkets",GPC
Statement 19/04/2016 - 17/05/2016,C&YPS-Non Delegated,SAINSBURYS S/MKTS,22/04/2016,12.40,Provisions - General,"Grocery Stores, Supermarkets",GPC
Statement 19/04/2016 - 17/05/2016,C&YPS-Non Delegated,SAINSBURYS S/MKTS,10/05/2016,52.00,Provisions - General,"Grocery Stores, Supermarkets",GPC
Statement 19/04/2016 - 17/05/2016,C&YPS-Non Delegated,SIMPLE SOLUTIONS INC,04/05/2016,107.19,Other Transfer Payments - Section 23 Grants,Men's And Women's Clothing Stores,GPC
Statement 19/04/2016 - 17/05/2016,C&YPS-Non Delegated,SIREN FILMS LTD,09/05/2016,93.00,Other Expenditure - General,Correspondence Schools,GPC
Statement 19/04/2016 - 17/05/2016,C&YPS-Non Delegated,ST PANCRAS INTL,03/05/2016,7.45,Subsistence - General,"Eating Places, Restaurants",GPC
Statement 19/04/2016 - 17/05/2016,C&YPS-Non Delegated,SUBWAY,20/04/2016,11.59,Other Expenditure - General,"Eating Places, Restaurants",GPC
Statement 19/04/2016 - 17/05/2016,C&YPS-Non Delegated,SUBWAY,29/04/2016,3.50,Subsistence - General,"Eating Places, Restaurants",GPC
Statement 19/04/2016 - 17/05/2016,C&YPS-Non Delegated,SUBWAY,04/05/2016,3.30,Subsistence - General,"Eating Places, Restaurants",GPC
Statement 19/04/2016 - 17/05/2016,C&YPS-Non Delegated,TESCO STORE 2849,25/04/2016,4.25,Materials - General,"Grocery Stores, Supermarkets",GPC
Statement 19/04/2016 - 17/05/2016,C&YPS-Non Delegated,TESCO STORE 2849,04/05/2016,13.40,Materials - General,"Grocery Stores, Supermarkets",GPC
Statement 19/04/2016 - 17/05/2016,C&YPS-Non Delegated,TESCO STORE 2849,20/04/2016,40.78,Other Expenditure - General,"Grocery Stores, Supermarkets",GPC
Statement 19/04/2016 - 17/05/2016,C&YPS-Non Delegated,TESCO STORE 2849,13/05/2016,5.94,Subsistence - General,"Grocery Stores, Supermarkets",GPC
Statement 19/04/2016 - 17/05/2016,C&YPS-Non Delegated,TESCO STORES 5123,10/05/2016,20.38,Materials - General,"Grocery Stores, Supermarkets",GPC
Statement 19/04/2016 - 17/05/2016,C&YPS-Non Delegated,TESCO STORES 5182,04/05/2016,142.67,Provisions - General,"Grocery Stores, Supermarkets",GPC
Statement 19/04/2016 - 17/05/2016,C&YPS-Non Delegated,TESCO STORES 5182,08/05/2016,134.85,Provisions - General,"Grocery Stores, Supermarkets",GPC
Statement 19/04/2016 - 17/05/2016,C&YPS-Non Delegated,TESCO STORES 5182,25/04/2016,12.80,Training Expenses - General,"Grocery Stores, Supermarkets",GPC
Statement 19/04/2016 - 17/05/2016,C&YPS-Non Delegated,TESCO STORES 6678,20/04/2016,2.75,Other Expenditure - General,"Grocery Stores, Supermarkets",GPC
Statement 19/04/2016 - 17/05/2016,C&YPS-Non Delegated,TESCO STORES-2044,11/05/2016,19.79,Provisions - General,"Grocery Stores, Supermarkets",GPC
Statement 19/04/2016 - 17/05/2016,C&YPS-Non Delegated,THE RAVEN HOTEL,18/04/2016,150.00,Subsistence - General,"Lodging-Hotels, Motels, Resorts",GPC
Statement 19/04/2016 - 17/05/2016,C&YPS-Non Delegated,THE SAFETY SUPPLY,18/04/2016,32.50,Contract Hire - General,Miscellaneous Apparel and Accessory Stores,GPC
Statement 19/04/2016 - 17/05/2016,C&YPS-Non Delegated,TRAINLINE,17/04/2016,26.52,Casual/Essential - General,Passenger Railways,GPC
Statement 19/04/2016 - 17/05/2016,C&YPS-Non Delegated,TRAVELODGE WEBSITE,09/05/2016,140.00,Other Transfer Payments - Leaving Care Grants,Travelodge,GPC
Statement 19/04/2016 - 17/05/2016,C&YPS-Non Delegated,TRAVELODGE WEBSITE,26/04/2016,241.80,Subsistence - General,Travelodge,GPC
Statement 19/04/2016 - 17/05/2016,C&YPS-Non Delegated,TRAVELODGE WEBSITE,06/05/2016,57.95,Training Expenses - General,Travelodge,GPC
Statement 19/04/2016 - 17/05/2016,C&YPS-Non Delegated,TVLICENSING.CO.UK,15/04/2016,145.50,Schools Agency staff - Teaching Staff,"Management, Consulting and Public Relations Servic",GPC
Statement 19/04/2016 - 17/05/2016,C&YPS-Non Delegated,TVLICENSING.CO.UK,06/05/2016,145.50,Schools Agency staff - Teaching Staff,"Management, Consulting and Public Relations Servic",GPC
Statement 19/04/2016 - 17/05/2016,C&YPS-Non Delegated,TVLICENSING.CO.UK,06/05/2016,145.50,Schools Agency staff - Teaching Staff,"Management, Consulting and Public Relations Servic",GPC
Statement 19/04/2016 - 17/05/2016,C&YPS-Non Delegated,WELCOME BREAK,05/05/2016,59.00,Other Transfer Payments - Section 23 Grants,"Lodging-Hotels, Motels, Resorts",GPC
Statement 19/04/2016 - 17/05/2016,C&YPS-Non Delegated,WELCOME BREAK,26/04/2016,177.00,Other Transfer Payments - Sector 17- Other,"Lodging-Hotels, Motels, Resorts",GPC
Statement 19/04/2016 - 17/05/2016,C&YPS-Non Delegated,WELCOME BREAK,28/04/2016,236.00,Other Transfer Payments - Sector 17- Other,"Lodging-Hotels, Motels, Resorts",GPC
Statement 19/04/2016 - 17/05/2016,C&YPS-Non Delegated,WHITE SWAN HOTEL,21/04/2016,360.00,Training Expenses - General,"Lodging-Hotels, Motels, Resorts",GPC
Statement 19/04/2016 - 17/05/2016,C&YPS-Non Delegated,WILKO RETAIL LIMIT,16/05/2016,6.23,Operational Equipment - General,Household Appliance Stores,GPC
Statement 19/04/2016 - 17/05/2016,C&YPS-Non Delegated,WILKO RETAIL LIMIT,27/04/2016,2.80,Other Expenditure - General,Household Appliance Stores,GPC
Statement 19/04/2016 - 17/05/2016,C&YPS-Non Delegated,WILKO RETAIL LIMIT,18/04/2016,20.61,Subsistence - General,Household Appliance Stores,GPC
Statement 19/04/2016 - 17/05/2016,C&YPS-Non Delegated,WM MORRISON 054,20/04/2016,13.79,Other Expenditure - General,"Grocery Stores, Supermarkets",GPC
Statement 19/04/2016 - 17/05/2016,C&YPS-Non Delegated,WWW.ANNARBOR.CO.UK,16/05/2016,94.00,General Equipment - General,Catalog Merchants,GPC
Statement 19/04/2016 - 17/05/2016,C&YPS-Non Delegated,WWW.GOVKNOW.COM,29/04/2016,504.00,Other Equipment & Materials - General,Business Services-Not Elsewhere Classified,GPC
Statement 19/04/2016 - 17/05/2016,C&YPS-Non Delegated,WWW.MILKANDMORE.CO.UK,22/04/2016,7.80,Provisions - General,Continuity/Subscription Merchants,GPC
Statement 19/04/2016 - 17/05/2016,C&YPS-Non Delegated,WWW.MILKANDMORE.CO.UK,03/05/2016,9.40,Provisions - General,Continuity/Subscription Merchants,GPC
Statement 19/04/2016 - 17/05/2016,C&YPS-Non Delegated,WWW.MILKANDMORE.CO.UK,03/05/2016,12.48,Provisions - General,Continuity/Subscription Merchants,GPC
Statement 19/04/2016 - 17/05/2016,C&YPS-Non Delegated,WWW.MILKANDMORE.CO.UK,03/05/2016,3.12,Provisions - General,Continuity/Subscription Merchants,GPC
Statement 19/04/2016 - 17/05/2016,C&YPS-Non Delegated,WWW.TWYCROSSZOO.ORG,04/05/2016,62.00,Other Transfer Payments - Section 23 Grants,Tourist Attractions and Exhibits,GPC
Statement 19/04/2016 - 17/05/2016,C&YPS-Schools,ARGOS LTD,21/04/2016,30.43,Materials - General,Discount Stores,GPC
Statement 19/04/2016 - 17/05/2016,C&YPS-Schools,ARGOS LTD,12/05/2016,68.94,Materials - General,Discount Stores,GPC
Statement 19/04/2016 - 17/05/2016,C&YPS-Schools,ARGOS LTD,13/05/2016,12.48,Materials - General,Discount Stores,GPC
Statement 19/04/2016 - 17/05/2016,C&YPS-Schools,CURRYS ONLINE,26/04/2016,139.00,Materials - General,"RADIO, TELEVISION, AND STEREO STORES (ELECTRONIC STORES)",GPC
Statement 19/04/2016 - 17/05/2016,C&YPS-Schools,ESPO,05/05/2016,264.28,Other Expenditure - General,Government Services-Not Elsewhere Classified,GPC
Statement 19/04/2016 - 17/05/2016,C&YPS-Schools,FISHER EDUCATIONAL LTD,10/05/2016,60.00,Training Expenses - General,Schools and Educational Services-Not Elsewhere Cla,GPC
Statement 19/04/2016 - 17/05/2016,C&YPS-Schools,JS ONLINE GROCERY,18/04/2016,76.24,Materials - General,"Grocery Stores, Supermarkets",GPC
Statement 19/04/2016 - 17/05/2016,C&YPS-Schools,JS ONLINE GROCERY,25/04/2016,78.92,Materials - General,"Grocery Stores, Supermarkets",GPC
Statement 19/04/2016 - 17/05/2016,C&YPS-Schools,JS ONLINE GROCERY,03/05/2016,50.20,Materials - General,"Grocery Stores, Supermarkets",GPC
Statement 19/04/2016 - 17/05/2016,C&YPS-Schools,JS ONLINE GROCERY,09/05/2016,83.90,Materials - General,"Grocery Stores, Supermarkets",GPC
Statement 19/04/2016 - 17/05/2016,C&YPS-Schools,JS ONLINE GROCERY,16/05/2016,99.55,Materials - General,"Grocery Stores, Supermarkets",GPC
Statement 19/04/2016 - 17/05/2016,C&YPS-Schools,POST OFFICE COUNTER,10/05/2016,8.55,Postal Services - General,Postage Stamps,GPC
Statement 19/04/2016 - 17/05/2016,C&YPS-Schools,PRIMARY TEACHING SERVI,11/05/2016,19.80,Stationery - General,"Stationery, Office, and School Supply Stores",GPC
Statement 19/04/2016 - 17/05/2016,C&YPS-Schools,SAINSBURYS S/MKTS,28/04/2016,37.00,Materials - General,"Grocery Stores, Supermarkets",GPC
Statement 19/04/2016 - 17/05/2016,C&YPS-Schools,TESCO STORES 5182,18/04/2016,18.90,Materials - General,"Grocery Stores, Supermarkets",GPC
Statement 19/04/2016 - 17/05/2016,C&YPS-Schools,TESCO STORES 5182,27/04/2016,11.29,Materials - General,"Grocery Stores, Supermarkets",GPC
Statement 19/04/2016 - 17/05/2016,C&YPS-Schools,WH SMITH,12/05/2016,5.49,Newspapers & Periodicals - General,News Dealers and Newsstands,GPC
Statement 19/04/2016 - 17/05/2016,Chief Executive,Amazon Prime,12/05/2016,79.00,Other Expenditure - General,Continuity/Subscription Merchants,GPC
Statement 19/04/2016 - 17/05/2016,Chief Executive,Amazon Prime,12/05/2016,-79.00,Other Expenditure - General,Continuity/Subscription Merchants,GPC
Statement 19/04/2016 - 17/05/2016,Chief Executive,Amazon Svcs Europe SAR,21/04/2016,12.19,Books - General,Book Stores,GPC
Statement 19/04/2016 - 17/05/2016,Chief Executive,Amazon UK Marketplace,06/05/2016,64.41,Books - General,Book Stores,GPC
Statement 19/04/2016 - 17/05/2016,Chief Executive,Amazon UK Marketplace,25/04/2016,31.75,Stationery - General,Book Stores,GPC
Statement 19/04/2016 - 17/05/2016,Chief Executive,Amazon UK Marketplace,05/05/2016,70.00,Stationery - General,Book Stores,GPC
Statement 19/04/2016 - 17/05/2016,Chief Executive,CARTRIDGE SAVE,16/05/2016,268.65,Stationery - General,"Stationary, Office Supplies, Printing and Writing",GPC
Statement 19/04/2016 - 17/05/2016,Chief Executive,CHARNWOOD BOROUGH COUNCI,10/05/2016,4.90,Casual/Essential - General,Automobile Parking Lots and Garages,GPC
Statement 19/04/2016 - 17/05/2016,Chief Executive,CHECK SOL DISCLOSURE,20/04/2016,49.00,Schools Agency staff - Teaching Staff,Professional Services-Not Elsewhere Classified,GPC
Statement 19/04/2016 - 17/05/2016,Chief Executive,CITY OF LINCOLN,20/04/2016,4.50,Casual/Essential - General,Government Services-Not Elsewhere Classified,GPC
Statement 19/04/2016 - 17/05/2016,Chief Executive,DISCLOSURE SCOT,27/04/2016,25.00,Other Expenditure - General,Government Services-Not Elsewhere Classified,GPC
Statement 19/04/2016 - 17/05/2016,Chief Executive,EAST MIDLANDS LEICESTER,18/04/2016,11.25,Casual/Essential - General,Automobile Parking Lots and Garages,GPC
Statement 19/04/2016 - 17/05/2016,Chief Executive,EAST MIDLANDS LEICESTER,11/05/2016,6.25,Casual/Essential - General,Automobile Parking Lots and Garages,GPC
Statement 19/04/2016 - 17/05/2016,Chief Executive,HUTTONS HOTEL,29/04/2016,123.00,Subsistence - General,"Lodging-Hotels, Motels, Resorts",GPC
Statement 19/04/2016 - 17/05/2016,Chief Executive,KFC - LEICESTER MSA,23/04/2016,7.98,Subsistence - General,Fast-Food Restaurants (Quick Payment Service Pilot,GPC
Statement 19/04/2016 - 17/05/2016,Chief Executive,MAN.AIRPORT REVENUE OF,11/05/2016,21.00,Materials - General,"Airports, Airport Terminals, Flying Fields",GPC
Statement 19/04/2016 - 17/05/2016,Chief Executive,NCP LIMITED,03/05/2016,6.25,Casual/Essential - General,Automobile Parking Lots and Garages,GPC
Statement 19/04/2016 - 17/05/2016,Chief Executive,PARKING LEIC CC,26/04/2016,1.00,Casual/Essential - General,Government Services-Not Elsewhere Classified,GPC
Statement 19/04/2016 - 17/05/2016,Chief Executive,TESCO STORE 2846,16/05/2016,36.50,Other Expenditure - General,"Grocery Stores, Supermarkets",GPC
Statement 19/04/2016 - 17/05/2016,Chief Executive,THE WHITE HART HOTEL,13/05/2016,12.65,Subsistence - General,"Lodging-Hotels, Motels, Resorts",GPC
Statement 19/04/2016 - 17/05/2016,Chief Executive,UPT - EMT NOTTINGHAM RAI,12/05/2016,3.33,Casual/Essential - General,Professional Services-Not Elsewhere Classified,GPC
Statement 19/04/2016 - 17/05/2016,Chief Executive,UPT - EMT NOTTINGHAM RAI,20/04/2016,3.33,Schools Agency staff - Teaching Staff,Professional Services-Not Elsewhere Classified,GPC
Statement 19/04/2016 - 17/05/2016,Chief Executive,WWW.LABELPLANET.CO.UK,19/04/2016,35.25,Stationery - General,"Stationery, Office, and School Supply Stores",GPC
Statement 19/04/2016 - 17/05/2016,Corporate Resources,43036720 COSTA COFFEE,20/04/2016,6.10,Subsistence - General,Fast-Food Restaurants (Quick Payment Service Pilot,GPC
Statement 19/04/2016 - 17/05/2016,Corporate Resources,A W BEESLEY & SON,28/04/2016,17.90,Other Services - General,"Lawn and Garden Supply Stores, Nurseries",GPC
Statement 19/04/2016 - 17/05/2016,Corporate Resources,A W BEESLEY & SON,12/05/2016,11.95,Other Services - General,"Lawn and Garden Supply Stores, Nurseries",GPC
Statement 19/04/2016 - 17/05/2016,Corporate Resources,A4LABELSCOM,22/04/2016,79.80,Stationery - General,Durable Goods Not Elsewhere Classified,GPC
Statement 19/04/2016 - 17/05/2016,Corporate Resources,ACIVICO LIMITED,13/05/2016,70.00,Contract Catering - General,Caterers,GPC
Statement 19/04/2016 - 17/05/2016,Corporate Resources,Amazon Svcs Europe SAR,15/05/2016,34.35,Books - General,Book Stores,GPC
Statement 19/04/2016 - 17/05/2016,Corporate Resources,Amazon UK Marketplace,22/04/2016,28.57,Books - General,Book Stores,GPC
Statement 19/04/2016 - 17/05/2016,Corporate Resources,Amazon UK Marketplace,27/04/2016,22.50,Books - General,Book Stores,GPC
Statement 19/04/2016 - 17/05/2016,Corporate Resources,Amazon UK Marketplace,28/04/2016,5.98,Books - General,Book Stores,GPC
Statement 19/04/2016 - 17/05/2016,Corporate Resources,Amazon UK Marketplace,29/04/2016,4.59,Books - General,Book Stores,GPC
Statement 19/04/2016 - 17/05/2016,Corporate Resources,Amazon UK Marketplace,10/05/2016,77.14,Books - General,Book Stores,GPC
Statement 19/04/2016 - 17/05/2016,Corporate Resources,Amazon UK Marketplace,16/05/2016,15.99,Books - General,Book Stores,GPC
Statement 19/04/2016 - 17/05/2016,Corporate Resources,Amazon UK Marketplace,09/05/2016,110.64,Catering Equipment - General,Miscellaneous and Specialty Retail Stores,GPC
Statement 19/04/2016 - 17/05/2016,Corporate Resources,Amazon UK Marketplace,09/05/2016,24.06,Catering Equipment - General,Miscellaneous and Specialty Retail Stores,GPC
Statement 19/04/2016 - 17/05/2016,Corporate Resources,Amazon UK Marketplace,12/05/2016,19.12,Catering Equipment - General,Miscellaneous and Specialty Retail Stores,GPC
Statement 19/04/2016 - 17/05/2016,Corporate Resources,Amazon UK Marketplace,12/05/2016,28.50,Catering Equipment - General,Miscellaneous and Specialty Retail Stores,GPC
Statement 19/04/2016 - 17/05/2016,Corporate Resources,Amazon UK Marketplace,27/04/2016,135.12,Materials - General,Miscellaneous and Specialty Retail Stores,GPC
Statement 19/04/2016 - 17/05/2016,Corporate Resources,Amazon UK Marketplace,28/04/2016,29.80,Materials - General,Miscellaneous and Specialty Retail Stores,GPC
Statement 19/04/2016 - 17/05/2016,Corporate Resources,Amazon UK Marketplace,28/04/2016,25.80,Materials - General,Miscellaneous and Specialty Retail Stores,GPC
Statement 19/04/2016 - 17/05/2016,Corporate Resources,Amazon UK Marketplace,09/05/2016,31.17,Materials - General,Miscellaneous and Specialty Retail Stores,GPC
Statement 19/04/2016 - 17/05/2016,Corporate Resources,Amazon UK Marketplace,15/05/2016,12.87,Materials - General,Miscellaneous and Specialty Retail Stores,GPC
Statement 19/04/2016 - 17/05/2016,Corporate Resources,Amazon UK Marketplace,16/05/2016,6.56,Materials - General,Miscellaneous and Specialty Retail Stores,GPC
Statement 19/04/2016 - 17/05/2016,Corporate Resources,Amazon UK Marketplace,26/04/2016,15.95,Publicity/Marketing - General,Miscellaneous and Specialty Retail Stores,GPC
Statement 19/04/2016 - 17/05/2016,Corporate Resources,Amazon UK Marketplace,19/04/2016,25.98,Stationery - General,Book Stores,GPC
Statement 19/04/2016 - 17/05/2016,Corporate Resources,Amazon UK Marketplace,20/04/2016,34.32,Stationery - General,Book Stores,GPC
Statement 19/04/2016 - 17/05/2016,Corporate Resources,Amazon UK Marketplace,21/04/2016,17.21,Stationery - General,Miscellaneous and Specialty Retail Stores,GPC
Statement 19/04/2016 - 17/05/2016,Corporate Resources,Amazon UK Marketplace,06/05/2016,114.55,Stationery - General,Miscellaneous and Specialty Retail Stores,GPC
Statement 19/04/2016 - 17/05/2016,Corporate Resources,Amazon UK Marketplace,12/05/2016,109.80,Stationery - General,Book Stores,GPC
Statement 19/04/2016 - 17/05/2016,Corporate Resources,Amazon UK Marketplace,16/05/2016,392.99,Training Expenses - General,Miscellaneous and Specialty Retail Stores,GPC
Statement 19/04/2016 - 17/05/2016,Corporate Resources,Amazon UK Retail,16/05/2016,26.53,Catering Equipment - General,Direct Marketers - Other,GPC
Statement 19/04/2016 - 17/05/2016,Corporate Resources,Amazon UK Retail,27/04/2016,34.54,General Equipment - General,Direct Marketers - Other,GPC
Statement 19/04/2016 - 17/05/2016,Corporate Resources,Amazon UK Retail,19/04/2016,19.99,Other Expenditure - General,Direct Marketers - Other,GPC
Statement 19/04/2016 - 17/05/2016,Corporate Resources,Amazon UK Retail,21/04/2016,24.90,Other Expenditure - General,Direct Marketers - Other,GPC
Statement 19/04/2016 - 17/05/2016,Corporate Resources,Amazon UK Retail,21/04/2016,24.89,Other Expenditure - General,Direct Marketers - Other,GPC
Statement 19/04/2016 - 17/05/2016,Corporate Resources,Amazon UK Retail,12/05/2016,33.70,Other Expenditure - General,Direct Marketers - Other,GPC
Statement 19/04/2016 - 17/05/2016,Corporate Resources,Amazon UK Retail,02/05/2016,30.00,Stationery - General,Direct Marketers - Other,GPC
Statement 19/04/2016 - 17/05/2016,Corporate Resources,Amazon UK Retail,27/04/2016,26.64,Training Expenses - General,Direct Marketers - Other,GPC
Statement 19/04/2016 - 17/05/2016,Corporate Resources,Amazon UK Retail,01/05/2016,63.99,Training Expenses - General,Direct Marketers - Other,GPC
Statement 19/04/2016 - 17/05/2016,Corporate Resources,ANSTEY HARDWARE AND DIY,03/05/2016,58.33,Other Services - General,Hardware Stores,GPC
Statement 19/04/2016 - 17/05/2016,Corporate Resources,AS SUSHI & MORE LTD,19/04/2016,21.20,Subsistence - General,"Eating Places, Restaurants",GPC
Statement 19/04/2016 - 17/05/2016,Corporate Resources,ASDA STORES,07/05/2016,63.23,Other Expenditure - General,"Grocery Stores, Supermarkets",GPC
Statement 19/04/2016 - 17/05/2016,Corporate Resources,ASDA STORES 4477,23/04/2016,3.89,Other Expenditure - General,"Grocery Stores, Supermarkets",GPC
Statement 19/04/2016 - 17/05/2016,Corporate Resources,ASDA STORES 4477,27/04/2016,0.95,Other Expenditure - General,"Grocery Stores, Supermarkets",GPC
Statement 19/04/2016 - 17/05/2016,Corporate Resources,ASDA STORES 4477,27/04/2016,7.24,Other Expenditure - General,"Grocery Stores, Supermarkets",GPC
Statement 19/04/2016 - 17/05/2016,Corporate Resources,ASDA STORES 4477,05/05/2016,6.70,Other Expenditure - General,"Grocery Stores, Supermarkets",GPC
Statement 19/04/2016 - 17/05/2016,Corporate Resources,ASDA STORES 4477,11/05/2016,0.95,Other Expenditure - General,"Grocery Stores, Supermarkets",GPC
Statement 19/04/2016 - 17/05/2016,Corporate Resources,ASDA STORES 4477,11/05/2016,6.11,Other Expenditure - General,"Grocery Stores, Supermarkets",GPC
Statement 19/04/2016 - 17/05/2016,Corporate Resources,ASDA STORES 4477,13/05/2016,4.50,Other Expenditure - General,"Grocery Stores, Supermarkets",GPC
Statement 19/04/2016 - 17/05/2016,Corporate Resources,ASDA STORES 4477,27/04/2016,14.00,Other Services - General,"Grocery Stores, Supermarkets",GPC
Statement 19/04/2016 - 17/05/2016,Corporate Resources,ASHBY DECORATOR CENTRE,06/05/2016,24.00,Other Services - General,GENERAL CONTRACTORS - RESIDENTIAL AND COMMERCIAL,GPC
Statement 19/04/2016 - 17/05/2016,Corporate Resources,B AND Q 1052,18/04/2016,82.84,Other Services - General,"Building Materials, Lumber Stores",GPC
Statement 19/04/2016 - 17/05/2016,Corporate Resources,B AND Q 1052,28/04/2016,16.62,Other Services - General,"Building Materials, Lumber Stores",GPC
Statement 19/04/2016 - 17/05/2016,Corporate Resources,B AND Q 1052,04/05/2016,89.28,Other Services - General,"Building Materials, Lumber Stores",GPC
Statement 19/04/2016 - 17/05/2016,Corporate Resources,B AND Q 1052,04/05/2016,7.35,Other Services - General,"Building Materials, Lumber Stores",GPC
Statement 19/04/2016 - 17/05/2016,Corporate Resources,B AND Q 1052,04/05/2016,-18.84,R & M of Buildings - General,"Building Materials, Lumber Stores",GPC
Statement 19/04/2016 - 17/05/2016,Corporate Resources,B AND Q 1179,07/05/2016,22.52,Other Services - General,"Building Materials, Lumber Stores",GPC
Statement 19/04/2016 - 17/05/2016,Corporate Resources,BASC MEMBERSHIP,26/04/2016,52.00,Other Expenditure - General,"Membership Clubs (Sports, Recreation, Athletic), C",GPC
Statement 19/04/2016 - 17/05/2016,Corporate Resources,BASC MEMBERSHIP,18/04/2016,74.00,Subscriptions - General,"Membership Clubs (Sports, Recreation, Athletic), C",GPC
Statement 19/04/2016 - 17/05/2016,Corporate Resources,BLABY DISTRICT COUNCIL,12/05/2016,3.75,Public Transport -  Staff - General,Automobile Parking Lots and Garages,GPC
Statement 19/04/2016 - 17/05/2016,Corporate Resources,BOILERHOUSE BCLIVE16,19/04/2016,114.00,Conference - General,Computer Software Stores,GPC
Statement 19/04/2016 - 17/05/2016,Corporate Resources,BROADMARSH CAR PARK UP,26/04/2016,3.70,Other Expenditure - General,Government Services-Not Elsewhere Classified,GPC
Statement 19/04/2016 - 17/05/2016,Corporate Resources,BUS/WIFI TICKET,25/04/2016,15.00,Public Transport -  Staff - General,"Bus Lines, Charters, Tour Buses",GPC
Statement 19/04/2016 - 17/05/2016,Corporate Resources,CANONS COURT MEWS,16/05/2016,120.00,Subsistence - General,"Lodging-Hotels, Motels, Resorts",GPC
Statement 19/04/2016 - 17/05/2016,Corporate Resources,CARD FACTORY,12/05/2016,0.99,Other Expenditure - General,"Gift, Card, Novelty, and Souvenir Shops",GPC
Statement 19/04/2016 - 17/05/2016,Corporate Resources,CENTRAL ENG COOP,25/04/2016,8.50,Other Expenditure - General,Department Stores,GPC
Statement 19/04/2016 - 17/05/2016,Corporate Resources,CIEH,18/04/2016,175.00,Training Expenses - General,Membership Organizations-Not Elsewhere Classified,GPC
Statement 19/04/2016 - 17/05/2016,Corporate Resources,CITB,20/04/2016,25.00,Training Expenses - General,"Colleges, Universities, Professional Schools, and",GPC
Statement 19/04/2016 - 17/05/2016,Corporate Resources,CITB,20/04/2016,25.00,Training Expenses - General,"Colleges, Universities, Professional Schools, and",GPC
Statement 19/04/2016 - 17/05/2016,Corporate Resources,CO-OP GROUP 070412,25/04/2016,19.57,Other Expenditure - General,"Grocery Stores, Supermarkets",GPC
Statement 19/04/2016 - 17/05/2016,Corporate Resources,CO-OP GROUP 070412,04/05/2016,14.18,Other Expenditure - General,"Grocery Stores, Supermarkets",GPC
Statement 19/04/2016 - 17/05/2016,Corporate Resources,CO-OP LATE SHOP,16/05/2016,2.66,Other Expenditure - General,"Grocery Stores, Supermarkets",GPC
Statement 19/04/2016 - 17/05/2016,Corporate Resources,COSMO - SHEFFIELD,05/05/2016,171.10,Subsistence - General,"Eating Places, Restaurants",GPC
Statement 19/04/2016 - 17/05/2016,Corporate Resources,COUNTRY TRADITION,14/04/2016,60.00,Materials - General,Sporting Goods Stores,GPC
Statement 19/04/2016 - 17/05/2016,Corporate Resources,CROSS COUNTRY CC,20/04/2016,31.00,Training Expenses - General,Passenger Railways,GPC
Statement 19/04/2016 - 17/05/2016,Corporate Resources,CROSS COUNTRY CC,20/04/2016,18.30,Training Expenses - General,Passenger Railways,GPC
Statement 19/04/2016 - 17/05/2016,Corporate Resources,CROSS COUNTRY CC,20/04/2016,14.00,Training Expenses - General,Passenger Railways,GPC
Statement 19/04/2016 - 17/05/2016,Corporate Resources,CROSS COUNTRY CC,26/04/2016,-7.00,Training Expenses - General,Passenger Railways,GPC
Statement 19/04/2016 - 17/05/2016,Corporate Resources,CROSS COUNTRY CC,26/04/2016,-3.00,Training Expenses - General,Passenger Railways,GPC
Statement 19/04/2016 - 17/05/2016,Corporate Resources,CROSS COUNTRY CC,29/04/2016,-20.00,Training Expenses - General,Passenger Railways,GPC
Statement 19/04/2016 - 17/05/2016,Corporate Resources,CURRYS SUPERSTORE,30/04/2016,24.99,Stationery - General,"RADIO, TELEVISION, AND STEREO STORES (ELECTRONIC STORES)",GPC
Statement 19/04/2016 - 17/05/2016,Corporate Resources,CURRYS SUPERSTORE,09/05/2016,18.33,Stationery - General,"RADIO, TELEVISION, AND STEREO STORES (ELECTRONIC STORES)",GPC
Statement 19/04/2016 - 17/05/2016,Corporate Resources,DE MONTFORT UNIVERSITY ON,09/05/2016,250.00,Training Expenses - General,"Colleges, Universities, Professional Schools, and",GPC
Statement 19/04/2016 - 17/05/2016,Corporate Resources,DESTINET LTD,29/04/2016,174.00,Publicity/Marketing - General,Advertising Services,GPC
Statement 19/04/2016 - 17/05/2016,Corporate Resources,DISCLOSURE SCOT,05/05/2016,25.00,IT Equipment - Purchase - Hardware,Government Services-Not Elsewhere Classified,GPC
Statement 19/04/2016 - 17/05/2016,Corporate Resources,DISCLOSURE SCOT,11/05/2016,25.00,IT Equipment - Purchase - Hardware,Government Services-Not Elsewhere Classified,GPC
Statement 19/04/2016 - 17/05/2016,Corporate Resources,DISCLOSURE SCOT,11/05/2016,25.00,IT Equipment - Purchase - Hardware,Government Services-Not Elsewhere Classified,GPC
Statement 19/04/2016 - 17/05/2016,Corporate Resources,DISCLOSURE SCOT,10/05/2016,25.00,Other Expenditure - General,Government Services-Not Elsewhere Classified,GPC
Statement 19/04/2016 - 17/05/2016,Corporate Resources,DISCLOSURE SCOT,11/05/2016,25.00,Other Expenditure - General,Government Services-Not Elsewhere Classified,GPC
Statement 19/04/2016 - 17/05/2016,Corporate Resources,DISCLOSURE SCOT,12/05/2016,25.00,Other Expenditure - General,Government Services-Not Elsewhere Classified,GPC
Statement 19/04/2016 - 17/05/2016,Corporate Resources,DISCLOSURE SCOT,13/05/2016,25.00,Other Expenditure - General,Government Services-Not Elsewhere Classified,GPC
Statement 19/04/2016 - 17/05/2016,Corporate Resources,DISCLOSURE SCOT,13/05/2016,25.00,Other Expenditure - General,Government Services-Not Elsewhere Classified,GPC
Statement 19/04/2016 - 17/05/2016,Corporate Resources,DIXONS,21/04/2016,8.33,Materials - General,"RADIO, TELEVISION, AND STEREO STORES (ELECTRONIC STORES)",GPC
Statement 19/04/2016 - 17/05/2016,Corporate Resources,DVLA VEHICLE TAX,12/05/2016,232.50,Road Licences - General,Government Services-Not Elsewhere Classified,GPC
Statement 19/04/2016 - 17/05/2016,Corporate Resources,EAST MIDLAND TRAINS,06/05/2016,14.00,Public Transport -  Staff - General,Automobile Parking Lots and Garages,GPC
Statement 19/04/2016 - 17/05/2016,Corporate Resources,EAST MIDLANDS LEICESTER,21/04/2016,21.00,Casual/Essential - General,Automobile Parking Lots and Garages,GPC
Statement 19/04/2016 - 17/05/2016,Corporate Resources,EAST MIDLANDS MARKET HAR,19/04/2016,11.00,Public Transport -  Staff - General,Automobile Parking Lots and Garages,GPC
Statement 19/04/2016 - 17/05/2016,Corporate Resources,EAST MIDLANDS MARKET HAR,19/04/2016,11.00,Public Transport -  Staff - General,Automobile Parking Lots and Garages,GPC
Statement 19/04/2016 - 17/05/2016,Corporate Resources,EAST MIDLANDS MARKET HAR,21/04/2016,28.50,Public Transport -  Staff - General,Automobile Parking Lots and Garages,GPC
Statement 19/04/2016 - 17/05/2016,Corporate Resources,EAST MIDLANDS MARKET HAR,22/04/2016,11.00,Public Transport -  Staff - General,Automobile Parking Lots and Garages,GPC
Statement 19/04/2016 - 17/05/2016,Corporate Resources,EAST MIDLANDS MARKET HAR,22/04/2016,22.00,Public Transport -  Staff - General,Automobile Parking Lots and Garages,GPC
Statement 19/04/2016 - 17/05/2016,Corporate Resources,EAST MIDLANDS MARKET HAR,26/04/2016,22.00,Public Transport -  Staff - General,Automobile Parking Lots and Garages,GPC
Statement 19/04/2016 - 17/05/2016,Corporate Resources,EAST MIDLANDS MARKET HAR,29/04/2016,11.00,Public Transport -  Staff - General,Automobile Parking Lots and Garages,GPC
Statement 19/04/2016 - 17/05/2016,Corporate Resources,EAST MIDLANDS MARKET HAR,04/05/2016,6.50,Public Transport -  Staff - General,Automobile Parking Lots and Garages,GPC
Statement 19/04/2016 - 17/05/2016,Corporate Resources,EAST MIDLANDS MARKET HAR,06/05/2016,22.00,Public Transport -  Staff - General,Automobile Parking Lots and Garages,GPC
Statement 19/04/2016 - 17/05/2016,Corporate Resources,EAST MIDLANDS MARKET HAR,09/05/2016,11.00,Public Transport -  Staff - General,Automobile Parking Lots and Garages,GPC
Statement 19/04/2016 - 17/05/2016,Corporate Resources,EAST MIDLANDS MARKET HAR,13/05/2016,11.00,Public Transport -  Staff - General,Automobile Parking Lots and Garages,GPC
Statement 19/04/2016 - 17/05/2016,Corporate Resources,EAST MIDLANDS MARKET HAR,13/05/2016,22.00,Public Transport -  Staff - General,Automobile Parking Lots and Garages,GPC
Statement 19/04/2016 - 17/05/2016,Corporate Resources,EAST MIDLANDS TRAI,19/04/2016,48.50,Public Transport -  Staff - General,Passenger Railways,GPC
Statement 19/04/2016 - 17/05/2016,Corporate Resources,EAST MIDLANDS TRAI,21/04/2016,48.50,Public Transport -  Staff - General,Passenger Railways,GPC
Statement 19/04/2016 - 17/05/2016,Corporate Resources,EAST MIDLANDS TRAI,12/05/2016,11.00,Public Transport -  Staff - General,Passenger Railways,GPC
Statement 19/04/2016 - 17/05/2016,Corporate Resources,EAST MIDLANDS TRAINS L,09/05/2016,12.00,Public Transport -  Staff - General,Passenger Railways,GPC
Statement 19/04/2016 - 17/05/2016,Corporate Resources,EASTMIDLANDSTRAINS,18/04/2016,72.08,Public Transport -  Staff - General,Passenger Railways,GPC
Statement 19/04/2016 - 17/05/2016,Corporate Resources,EASTMIDLANDSTRAINS,09/05/2016,135.42,Public Transport -  Staff - General,Passenger Railways,GPC
Statement 19/04/2016 - 17/05/2016,Corporate Resources,EMAP LTD-SUBSCRIPTIONS,03/05/2016,163.00,Subscriptions - General,Miscellaneous Publishing and  Printing,GPC
Statement 19/04/2016 - 17/05/2016,Corporate Resources,ENGLISH BRAIDS,25/04/2016,41.50,Public Transport -  Staff - General,Boat Dealers,GPC
Statement 19/04/2016 - 17/05/2016,Corporate Resources,ESPO,19/04/2016,101.70,General Equipment - General,Government Services-Not Elsewhere Classified,GPC
Statement 19/04/2016 - 17/05/2016,Corporate Resources,ESPO,19/04/2016,29.50,Training Expenses - General,Government Services-Not Elsewhere Classified,GPC
Statement 19/04/2016 - 17/05/2016,Corporate Resources,FACEBOOK N8Z9J9ETE2,30/04/2016,23.34,Publicity/Marketing - General,Advertising Services,GPC
Statement 19/04/2016 - 17/05/2016,Corporate Resources,FOREIGN EXCHANGE FEE,25/04/2016,2.88,Publicity/Marketing - General,Misc-Unknown,GPC
Statement 19/04/2016 - 17/05/2016,Corporate Resources,FOREIGN EXCHANGE FEE,12/05/2016,1.13,Subscriptions - General,Misc-Unknown,GPC
Statement 19/04/2016 - 17/05/2016,Corporate Resources,FOREIGN EXCHANGE FEE,16/05/2016,15.97,Training Expenses - General,Misc-Unknown,GPC
Statement 19/04/2016 - 17/05/2016,Corporate Resources,FOREIGN EXCHANGE FEE,16/05/2016,3.88,Training Expenses - General,Misc-Unknown,GPC
Statement 19/04/2016 - 17/05/2016,Corporate Resources,GANTTIC LLC,11/05/2016,40.99,Subscriptions - General,Miscellaneous and Specialty Retail Stores,GPC
Statement 19/04/2016 - 17/05/2016,Corporate Resources,GO OUTDOORS LTD,10/05/2016,172.98,Materials - General,"Sports Apparel, Riding Apparel Stores",GPC
Statement 19/04/2016 - 17/05/2016,Corporate Resources,GO OUTDOORS LTD,04/05/2016,33.67,Other Services - General,"Sports Apparel, Riding Apparel Stores",GPC
Statement 19/04/2016 - 17/05/2016,Corporate Resources,GYNSILLS,18/04/2016,6.99,Subsistence - General,"Drinking Places (Alcoholic Beverages)-Bars, Tavern",GPC
Statement 19/04/2016 - 17/05/2016,Corporate Resources,HALFORDS 0428,09/05/2016,6.50,Other Services - General,Bicycle Shops-Sales and Service,GPC
Statement 19/04/2016 - 17/05/2016,Corporate Resources,HARLOW BROS LTD,20/04/2016,8.11,Other Services - General,"Building Materials, Lumber Stores",GPC
Statement 19/04/2016 - 17/05/2016,Corporate Resources,HARLOW BROS LTD,27/04/2016,15.37,Other Services - General,"Building Materials, Lumber Stores",GPC
Statement 19/04/2016 - 17/05/2016,Corporate Resources,HEMMING GROUP LTD,03/05/2016,140.00,Other Expenditure - General,Catalog Merchants,GPC
Statement 19/04/2016 - 17/05/2016,Corporate Resources,HIEX MANCHESTER,05/05/2016,83.00,Training Expenses - General,Holiday Inns,GPC
Statement 19/04/2016 - 17/05/2016,Corporate Resources,HIGGOTTS,29/04/2016,57.07,Operational Equipment - General,Landscaping and Horticultural Services,GPC
Statement 19/04/2016 - 17/05/2016,Corporate Resources,HILTON,03/05/2016,109.60,Training Expenses - General,Hilton Hotels,GPC
Statement 19/04/2016 - 17/05/2016,Corporate Resources,HOOTSUITE MEDIA INC.,24/04/2016,104.81,Publicity/Marketing - General,Business Services-Not Elsewhere Classified,GPC
Statement 19/04/2016 - 17/05/2016,Corporate Resources,HOUSE OF FRASER,29/03/2016,-202.50,Materials - General,Department Stores,GPC
Statement 19/04/2016 - 17/05/2016,Corporate Resources,HOUSE OF FRASER,04/04/2016,-163.48,Materials - General,Department Stores,GPC
Statement 19/04/2016 - 17/05/2016,Corporate Resources,HOUSE OF FRASER,11/04/2016,-163.48,Materials - General,Department Stores,GPC
Statement 19/04/2016 - 17/05/2016,Corporate Resources,HOUSE OF FRASER,21/04/2016,0.00,Materials - General,Department Stores,GPC
Statement 19/04/2016 - 17/05/2016,Corporate Resources,HOUSE OF FRASER,26/04/2016,0.00,Materials - General,Department Stores,GPC
Statement 19/04/2016 - 17/05/2016,Corporate Resources,HOUSE OF FRASER,02/05/2016,0.00,Materials - General,Department Stores,GPC
Statement 19/04/2016 - 17/05/2016,Corporate Resources,I.Q.P.C EVENTS,13/05/2016,580.80,Training Expenses - General,Business Services-Not Elsewhere Classified,GPC
Statement 19/04/2016 - 17/05/2016,Corporate Resources,INSOMNIA,10/05/2016,4.90,Subsistence - General,Fast-Food Restaurants (Quick Payment Service Pilot,GPC
Statement 19/04/2016 - 17/05/2016,Corporate Resources,ITSU 048 GREAT PETER S,22/04/2016,5.19,Subsistence - General,"Eating Places, Restaurants",GPC
Statement 19/04/2016 - 17/05/2016,Corporate Resources,ITSU 048 GREAT PETER S,26/04/2016,5.99,Subsistence - General,"Eating Places, Restaurants",GPC
Statement 19/04/2016 - 17/05/2016,Corporate Resources,ITSU 062 EUSTON PIAZZA,25/04/2016,8.73,Subsistence - General,"Eating Places, Restaurants",GPC
Statement 19/04/2016 - 17/05/2016,Corporate Resources,JOLLYES PETFOOD,28/04/2016,4.65,Other Services - General,Pet Shops-Pet Food and Supplies,GPC
Statement 19/04/2016 - 17/05/2016,Corporate Resources,JURYS INN CUSTOM HOUSE FR,14/05/2016,141.18,Training Expenses - General,"Lodging-Hotels, Motels, Resorts",GPC
Statement 19/04/2016 - 17/05/2016,Corporate Resources,JURYS INN SHEFFIEL,06/05/2016,183.34,Conference - General,"Lodging-Hotels, Motels, Resorts",GPC
Statement 19/04/2016 - 17/05/2016,Corporate Resources,JURYS INN SHEFFIEL,06/05/2016,208.33,Subsistence - General,"Lodging-Hotels, Motels, Resorts",GPC
Statement 19/04/2016 - 17/05/2016,Corporate Resources,JURYS INN SHEFFIEL,06/05/2016,208.33,Subsistence - General,"Lodging-Hotels, Motels, Resorts",GPC
Statement 19/04/2016 - 17/05/2016,Corporate Resources,LCC CATERING SERVICES,16/05/2016,4.00,Other Expenditure - General,Government Services-Not Elsewhere Classified,GPC
Statement 19/04/2016 - 17/05/2016,Corporate Resources,LCC CATERING SERVICES,27/04/2016,4.00,Subsistence - General,Government Services-Not Elsewhere Classified,GPC
Statement 19/04/2016 - 17/05/2016,Corporate Resources,LE FEVRES STORES,07/05/2016,13.17,Other Expenditure - General,"Grocery Stores, Supermarkets",GPC
Statement 19/04/2016 - 17/05/2016,Corporate Resources,LINKEDIN-2697141224,19/04/2016,227.94,Other Expenditure - General,Continuity/Subscription Merchants,GPC
Statement 19/04/2016 - 17/05/2016,Corporate Resources,LINKEDIN-2697191544,19/04/2016,227.94,Other Expenditure - General,Continuity/Subscription Merchants,GPC
Statement 19/04/2016 - 17/05/2016,Corporate Resources,LINKEDIN-270 1818424,21/04/2016,227.94,Other Expenditure - General,Continuity/Subscription Merchants,GPC
Statement 19/04/2016 - 17/05/2016,Corporate Resources,LINKEDIN-272 5847424,04/05/2016,227.94,Publicity/Marketing - General,Continuity/Subscription Merchants,GPC
Statement 19/04/2016 - 17/05/2016,Corporate Resources,LINKEDIN-2735773124,10/05/2016,227.94,Other Expenditure - General,Continuity/Subscription Merchants,GPC
Statement 19/04/2016 - 17/05/2016,Corporate Resources,LINKEDIN-2742960704,13/05/2016,227.94,Other Expenditure - General,Continuity/Subscription Merchants,GPC
Statement 19/04/2016 - 17/05/2016,Corporate Resources,LOUGHBOROUGH SST,22/04/2016,40.50,Public Transport -  Staff - General,Passenger Railways,GPC
Statement 19/04/2016 - 17/05/2016,Corporate Resources,LOUGHBOROUGH SST,29/04/2016,40.50,Public Transport -  Staff - General,Passenger Railways,GPC
Statement 19/04/2016 - 17/05/2016,Corporate Resources,LUL TICKET MACHINE,19/04/2016,9.80,Public Transport -  Staff - General,Passenger Railways,GPC
Statement 19/04/2016 - 17/05/2016,Corporate Resources,M&S SIMPLY FOOD - SSP,19/04/2016,4.50,Subsistence - General,"Miscellaneous Food Stores-Convenience Stores, Mark",GPC
Statement 19/04/2016 - 17/05/2016,Corporate Resources,M&S SIMPLY FOOD - SSP,05/05/2016,8.07,Subsistence - General,"Miscellaneous Food Stores-Convenience Stores, Mark",GPC
Statement 19/04/2016 - 17/05/2016,Corporate Resources,MACHINE MART LTD,28/04/2016,19.98,Materials - General,Household Appliance Stores,GPC
Statement 19/04/2016 - 17/05/2016,Corporate Resources,MACHINE MART LTD,25/04/2016,18.97,Other Expenditure - General,Household Appliance Stores,GPC
Statement 19/04/2016 - 17/05/2016,Corporate Resources,MAKRO SELF SERVICE LEICES,25/04/2016,18.68,Training Expenses - General,Wholesale Clubs,GPC
Statement 19/04/2016 - 17/05/2016,Corporate Resources,METROLINK TVM,18/04/2016,3.60,Public Transport -  Staff - General,"Bus Lines, Charters, Tour Buses",GPC
Statement 19/04/2016 - 17/05/2016,Corporate Resources,METROLINK TVM,20/04/2016,3.60,Public Transport -  Staff - General,"Bus Lines, Charters, Tour Buses",GPC
Statement 19/04/2016 - 17/05/2016,Corporate Resources,METROLINK TVM,22/04/2016,5.70,Public Transport -  Staff - General,"Bus Lines, Charters, Tour Buses",GPC
Statement 19/04/2016 - 17/05/2016,Corporate Resources,METROLINK TVM,25/04/2016,4.00,Public Transport -  Staff - General,"Bus Lines, Charters, Tour Buses",GPC
Statement 19/04/2016 - 17/05/2016,Corporate Resources,METROLINK TVM,26/04/2016,3.60,Public Transport -  Staff - General,"Bus Lines, Charters, Tour Buses",GPC
Statement 19/04/2016 - 17/05/2016,Corporate Resources,METROLINK TVM,27/04/2016,3.60,Public Transport -  Staff - General,"Bus Lines, Charters, Tour Buses",GPC
Statement 19/04/2016 - 17/05/2016,Corporate Resources,METROLINK TVM,29/04/2016,5.70,Public Transport -  Staff - General,"Bus Lines, Charters, Tour Buses",GPC
Statement 19/04/2016 - 17/05/2016,Corporate Resources,METROLINK TVM,03/05/2016,5.70,Public Transport -  Staff - General,"Bus Lines, Charters, Tour Buses",GPC
Statement 19/04/2016 - 17/05/2016,Corporate Resources,METROLINK TVM,04/05/2016,7.00,Public Transport -  Staff - General,"Bus Lines, Charters, Tour Buses",GPC
Statement 19/04/2016 - 17/05/2016,Corporate Resources,METROLINK TVM,05/05/2016,3.60,Public Transport -  Staff - General,"Bus Lines, Charters, Tour Buses",GPC
Statement 19/04/2016 - 17/05/2016,Corporate Resources,METROLINK TVM,06/05/2016,3.60,Public Transport -  Staff - General,"Bus Lines, Charters, Tour Buses",GPC
Statement 19/04/2016 - 17/05/2016,Corporate Resources,METROLINK TVM,09/05/2016,5.70,Public Transport -  Staff - General,"Bus Lines, Charters, Tour Buses",GPC
Statement 19/04/2016 - 17/05/2016,Corporate Resources,METROLINK TVM,11/05/2016,5.70,Public Transport -  Staff - General,"Bus Lines, Charters, Tour Buses",GPC
Statement 19/04/2016 - 17/05/2016,Corporate Resources,OYSTER RENEW WEB,28/04/2016,-25.00,Public Transport -  Staff - General,Passenger Railways,GPC
Statement 19/04/2016 - 17/05/2016,Corporate Resources,OYSTER RENEW WEB,04/05/2016,50.00,Public Transport -  Staff - General,Passenger Railways,GPC
Statement 19/04/2016 - 17/05/2016,Corporate Resources,P & R BUILDING SUPPLIE,29/04/2016,12.66,Other Services - General,"Building Materials, Lumber Stores",GPC
Statement 19/04/2016 - 17/05/2016,Corporate Resources,P & R BUILDING SUPPLIE,29/04/2016,37.00,Other Services - General,"Building Materials, Lumber Stores",GPC
Statement 19/04/2016 - 17/05/2016,Corporate Resources,PARKING LEIC CC,10/05/2016,3.00,Public Transport -  Staff - General,Government Services-Not Elsewhere Classified,GPC
Statement 19/04/2016 - 17/05/2016,Corporate Resources,PAYPAL  JOHNSTONMAT,19/04/2016,1025.00,Training Expenses - General,Advertising Services,GPC
Statement 19/04/2016 - 17/05/2016,Corporate Resources,PAYPAL  PRESENCE,18/04/2016,495.00,Conference - General,Professional Services-Not Elsewhere Classified,GPC
Statement 19/04/2016 - 17/05/2016,Corporate Resources,PAYPAL  RTPI,28/04/2016,50.00,Training Expenses - General,Charitable and Social Service Organizations,GPC
Statement 19/04/2016 - 17/05/2016,Corporate Resources,PAYPAL  RTPI,28/04/2016,50.00,Training Expenses - General,Charitable and Social Service Organizations,GPC
Statement 19/04/2016 - 17/05/2016,Corporate Resources,PP ONE STOP SHOEREPAIR,25/04/2016,15.00,Other Services - General,Variety Stores,GPC
Statement 19/04/2016 - 17/05/2016,Corporate Resources,PREMIER INN 44536670,21/04/2016,217.50,Training Expenses - General,"Eating Places, Restaurants",GPC
Statement 19/04/2016 - 17/05/2016,Corporate Resources,PREMIER INN 44536670,21/04/2016,275.00,Training Expenses - General,"Eating Places, Restaurants",GPC
Statement 19/04/2016 - 17/05/2016,Corporate Resources,PREMIER INN44521250,09/05/2016,51.66,Training Expenses - General,PREMIER TRAVEL,GPC
Statement 19/04/2016 - 17/05/2016,Corporate Resources,PREMIER INN44521260,29/04/2016,-74.00,Subsistence - General,PREMIER TRAVEL,GPC
Statement 19/04/2016 - 17/05/2016,Corporate Resources,PREMIER INN44521260,02/05/2016,70.50,Subsistence - General,PREMIER TRAVEL,GPC
Statement 19/04/2016 - 17/05/2016,Corporate Resources,PREMIER INN44521260,02/05/2016,70.00,Subsistence - General,PREMIER TRAVEL,GPC
Statement 19/04/2016 - 17/05/2016,Corporate Resources,PREMIER INN44521260,04/05/2016,61.00,Subsistence - General,PREMIER TRAVEL,GPC
Statement 19/04/2016 - 17/05/2016,Corporate Resources,PREMIER INN44521260,04/05/2016,55.00,Subsistence - General,PREMIER TRAVEL,GPC
Statement 19/04/2016 - 17/05/2016,Corporate Resources,PREMIER INN44531610,25/04/2016,93.32,Training Expenses - General,PREMIER TRAVEL,GPC
Statement 19/04/2016 - 17/05/2016,Corporate Resources,Q PARK VIA PARK MAGIC,16/05/2016,38.00,Public Transport -  Staff - General,Automobile Parking Lots and Garages,GPC
Statement 19/04/2016 - 17/05/2016,Corporate Resources,SAINSBURYS S/MKTS,19/04/2016,41.85,Materials - General,"Grocery Stores, Supermarkets",GPC
Statement 19/04/2016 - 17/05/2016,Corporate Resources,SAINSBURYS S/MKTS,03/05/2016,41.90,Materials - General,"Grocery Stores, Supermarkets",GPC
Statement 19/04/2016 - 17/05/2016,Corporate Resources,SAND'S OF GLENFIELDS,26/04/2016,14.00,Subsistence - General,"Eating Places, Restaurants",GPC
Statement 19/04/2016 - 17/05/2016,Corporate Resources,SANS SUPPLIES LTD,19/04/2016,117.50,Operational Equipment - Rental,Miscellaneous and Specialty Retail Stores,GPC
Statement 19/04/2016 - 17/05/2016,Corporate Resources,SCREWFIX,25/04/2016,8.32,Other Expenditure - General,"Building Materials, Lumber Stores",GPC
Statement 19/04/2016 - 17/05/2016,Corporate Resources,SKILLBASE FIRST AID,04/05/2016,119.99,IT Equipment - Software,Computer Software Stores,GPC
Statement 19/04/2016 - 17/05/2016,Corporate Resources,SLB SUPPLIES LTD,23/04/2016,56.90,Other Services - General,Pet Shops-Pet Food and Supplies,GPC
Statement 19/04/2016 - 17/05/2016,Corporate Resources,SLB SUPPLIES LTD,30/04/2016,20.00,Other Services - General,Pet Shops-Pet Food and Supplies,GPC
Statement 19/04/2016 - 17/05/2016,Corporate Resources,SLB SUPPLIES LTD,03/05/2016,16.00,Other Services - General,Pet Shops-Pet Food and Supplies,GPC
Statement 19/04/2016 - 17/05/2016,Corporate Resources,SLB SUPPLIES LTD,16/05/2016,46.00,Other Services - General,Pet Shops-Pet Food and Supplies,GPC
Statement 19/04/2016 - 17/05/2016,Corporate Resources,SON OF PETER,15/05/2016,8.50,Subsistence - General,Fast-Food Restaurants (Quick Payment Service Pilot,GPC
Statement 19/04/2016 - 17/05/2016,Corporate Resources,STAUNTON HAROLD NU,07/05/2016,6.99,Other Services - General,"Lawn and Garden Supply Stores, Nurseries",GPC
Statement 19/04/2016 - 17/05/2016,Corporate Resources,STEINS,16/05/2016,15.00,Subsistence - General,"Eating Places, Restaurants",GPC
Statement 19/04/2016 - 17/05/2016,Corporate Resources,SURVEYMONKEY.COM,08/05/2016,26.00,Other Expenditure - General,Computer Network/Information Services,GPC
Statement 19/04/2016 - 17/05/2016,Corporate Resources,T K MAXX,15/05/2016,59.99,Materials - General,Variety Stores,GPC
Statement 19/04/2016 - 17/05/2016,Corporate Resources,TCPA WEB INTERNET,11/05/2016,100.00,Training Expenses - General,Book Stores,GPC
Statement 19/04/2016 - 17/05/2016,Corporate Resources,TESCO STORE 2846,09/05/2016,10.00,General Equipment - General,"Grocery Stores, Supermarkets",GPC
Statement 19/04/2016 - 17/05/2016,Corporate Resources,TESCO STORES 2044,30/04/2016,7.55,Other Expenditure - General,"Grocery Stores, Supermarkets",GPC
Statement 19/04/2016 - 17/05/2016,Corporate Resources,TESCO STORES 2849,04/05/2016,5.00,Materials - General,"Grocery Stores, Supermarkets",GPC
Statement 19/04/2016 - 17/05/2016,Corporate Resources,TESCO STORES 2849,07/05/2016,16.66,Stationery - General,"Grocery Stores, Supermarkets",GPC
Statement 19/04/2016 - 17/05/2016,Corporate Resources,TFL CC/LEZ CHARGE,16/05/2016,2.50,Public Transport -  Staff - General,"Bridge and Road Fees, Tolls",GPC
Statement 19/04/2016 - 17/05/2016,Corporate Resources,TFL CC/LEZ CHARGE,16/05/2016,11.50,Public Transport -  Staff - General,"Bridge and Road Fees, Tolls",GPC
Statement 19/04/2016 - 17/05/2016,Corporate Resources,THE CASTERBRIDGE LTD,21/04/2016,170.00,Subsistence - General,"Lodging-Hotels, Motels, Resorts",GPC
Statement 19/04/2016 - 17/05/2016,Corporate Resources,THE PICTURE CAFE,19/04/2016,9.45,Subsistence - General,"Eating Places, Restaurants",GPC
Statement 19/04/2016 - 17/05/2016,Corporate Resources,THE POST OFFICE,19/04/2016,64.00,Stationery - General,Postage Stamps,GPC
Statement 19/04/2016 - 17/05/2016,Corporate Resources,TOTALJOBS GROUP LTD,22/04/2016,210.00,Printing - General,Miscellaneous Publishing and  Printing,GPC
Statement 19/04/2016 - 17/05/2016,Corporate Resources,TRAINLINE,26/04/2016,168.30,Public Transport -  Staff - General,Passenger Railways,GPC
Statement 19/04/2016 - 17/05/2016,Corporate Resources,TSGN,26/04/2016,144.00,Public Transport -  Staff - General,Passenger Railways,GPC
Statement 19/04/2016 - 17/05/2016,Corporate Resources,TSGN,09/05/2016,50.00,Public Transport -  Staff - General,Passenger Railways,GPC
Statement 19/04/2016 - 17/05/2016,Corporate Resources,TURNERS,12/05/2016,41.82,Materials - General,"Artist Supply Stores, Craft Shops",GPC
Statement 19/04/2016 - 17/05/2016,Corporate Resources,UPT-EAST MIDLANDS TRN-LB,21/04/2016,11.50,Public Transport -  Staff - General,Professional Services-Not Elsewhere Classified,GPC
Statement 19/04/2016 - 17/05/2016,Corporate Resources,UPT-EAST MIDLANDS TRN-LB,22/04/2016,11.50,Public Transport -  Staff - General,Professional Services-Not Elsewhere Classified,GPC
Statement 19/04/2016 - 17/05/2016,Corporate Resources,UPT-EAST MIDLANDS TRN-LB,29/04/2016,11.50,Public Transport -  Staff - General,Professional Services-Not Elsewhere Classified,GPC
Statement 19/04/2016 - 17/05/2016,Corporate Resources,UPT-EAST MIDLANDS TRN-LB,06/05/2016,23.00,Public Transport -  Staff - General,Professional Services-Not Elsewhere Classified,GPC
Statement 19/04/2016 - 17/05/2016,Corporate Resources,UPT-EAST MIDLANDS TRN-LB,12/05/2016,11.50,Public Transport -  Staff - General,Professional Services-Not Elsewhere Classified,GPC
Statement 19/04/2016 - 17/05/2016,Corporate Resources,WAITROSE 636,21/04/2016,11.41,Subsistence - General,"Grocery Stores, Supermarkets",GPC
Statement 19/04/2016 - 17/05/2016,Corporate Resources,WAITROSE 636,12/05/2016,9.57,Subsistence - General,"Grocery Stores, Supermarkets",GPC
Statement 19/04/2016 - 17/05/2016,Corporate Resources,WATERWORKS AQUATIC CENTRE,03/05/2016,38.54,Other Services - General,Pet Shops-Pet Food and Supplies,GPC
Statement 19/04/2016 - 17/05/2016,Corporate Resources,WEST COAST TRAINS,28/04/2016,8.50,Casual/Essential - General,Automobile Parking Lots and Garages,GPC
Statement 19/04/2016 - 17/05/2016,Corporate Resources,WH SMITH,11/05/2016,8.59,Stationery - General,News Dealers and Newsstands,GPC
Statement 19/04/2016 - 17/05/2016,Corporate Resources,WH SMITH,11/05/2016,8.58,Training Expenses - General,News Dealers and Newsstands,GPC
Statement 19/04/2016 - 17/05/2016,Corporate Resources,WICKES,23/04/2016,12.65,Other Services - General,"Building Materials, Lumber Stores",GPC
Statement 19/04/2016 - 17/05/2016,Corporate Resources,WICKES,03/05/2016,5.09,Other Services - General,"Building Materials, Lumber Stores",GPC
Statement 19/04/2016 - 17/05/2016,Corporate Resources,WICKES,03/05/2016,7.87,Other Services - General,"Building Materials, Lumber Stores",GPC
Statement 19/04/2016 - 17/05/2016,Corporate Resources,WICKES,11/05/2016,56.37,Other Services - General,"Building Materials, Lumber Stores",GPC
Statement 19/04/2016 - 17/05/2016,Corporate Resources,WILKO RETAIL LIMIT,23/04/2016,5.05,Other Expenditure - General,Household Appliance Stores,GPC
Statement 19/04/2016 - 17/05/2016,Corporate Resources,WILKO RETAIL LIMIT,03/05/2016,13.40,Other Services - General,Household Appliance Stores,GPC
Statement 19/04/2016 - 17/05/2016,Corporate Resources,WM MORRISON 054,19/04/2016,13.17,Other Expenditure - General,"Grocery Stores, Supermarkets",GPC
Statement 19/04/2016 - 17/05/2016,Corporate Resources,WM MORRISON 054,01/05/2016,14.56,Other Expenditure - General,"Grocery Stores, Supermarkets",GPC
Statement 19/04/2016 - 17/05/2016,Corporate Resources,WM MORRISON 054,15/05/2016,8.68,Other Expenditure - General,"Grocery Stores, Supermarkets",GPC
Statement 19/04/2016 - 17/05/2016,Corporate Resources,WWW.CIPFA.ORG.UK/PFMCO,20/04/2016,165.00,Training Expenses - General,Membership Organizations-Not Elsewhere Classified,GPC
Statement 19/04/2016 - 17/05/2016,Corporate Resources,WWW.CIPS.ORG,12/05/2016,379.44,Other Services - General,Membership Organizations-Not Elsewhere Classified,GPC
Statement 19/04/2016 - 17/05/2016,Corporate Resources,WWW.COMMIDEA.COM,11/05/2016,96.97,IT Equipment - General,Computer and Data Processing Services,GPC
Statement 19/04/2016 - 17/05/2016,Corporate Resources,WWW.EQUIP4WORK.CO.UK,22/04/2016,365.00,Operational Equipment - General,"Stationery, Office, and School Supply Stores",GPC
Statement 19/04/2016 - 17/05/2016,Corporate Resources,WWW.FORCE4.CO.UK,11/05/2016,25.85,Public Transport -  Staff - General,Boat Dealers,GPC
Statement 19/04/2016 - 17/05/2016,Corporate Resources,WWW.GARDENGAMES.COM,16/05/2016,243.30,Materials - General,"Hobby, Toy, and Game Shops",GPC
Statement 19/04/2016 - 17/05/2016,Corporate Resources,WWW.HAITHS.COM,27/04/2016,25.20,Other Services - General,Pet Shops-Pet Food and Supplies,GPC
Statement 19/04/2016 - 17/05/2016,Corporate Resources,WWW.OFCOM.ORG.UK,11/05/2016,75.00,Road Licences - General,Professional Services-Not Elsewhere Classified,GPC
Statement 19/04/2016 - 17/05/2016,Corporate Resources,WWW.PARAGON.NET.UK RT,15/05/2016,29.37,Other Expenditure - General,Continuity/Subscription Merchants,GPC
Statement 19/04/2016 - 17/05/2016,Corporate Resources,WWW.PPMA.ORG.UK,09/05/2016,120.00,Training Expenses - General,Business Services-Not Elsewhere Classified,GPC
Statement 19/04/2016 - 17/05/2016,Corporate Resources,WWW.SUPAPETS-ONLINE.CO,12/05/2016,23.50,Other Services - General,Pet Shops-Pet Food and Supplies,GPC
Statement 19/04/2016 - 17/05/2016,Corporate Resources,WWW.TAKEAWAY.JE,03/05/2016,12.00,Subsistence - General,"Eating Places, Restaurants",GPC
Statement 19/04/2016 - 17/05/2016,Corporate Resources,WWW.VIKING-DIRECT.CO.U,13/05/2016,26.27,Catering Equipment - General,"Stationary, Office Supplies, Printing and Writing",GPC
Statement 19/04/2016 - 17/05/2016,E&T,Amazon Svcs Europe SAR,13/05/2016,6.45,Other Equipment & Materials - General,Book Stores,GPC
Statement 19/04/2016 - 17/05/2016,E&T,Amazon UK Marketplace,05/05/2016,253.27,General Equipment - General,Book Stores,GPC
Statement 19/04/2016 - 17/05/2016,E&T,Amazon UK Marketplace,27/04/2016,1.79,Other Equipment & Materials - General,Miscellaneous and Specialty Retail Stores,GPC
Statement 19/04/2016 - 17/05/2016,E&T,Amazon UK Marketplace,29/04/2016,9.59,Other Equipment & Materials - General,Book Stores,GPC
Statement 19/04/2016 - 17/05/2016,E&T,Amazon UK Marketplace,04/05/2016,1.11,Other Equipment & Materials - General,Book Stores,GPC
Statement 19/04/2016 - 17/05/2016,E&T,Amazon UK Marketplace,13/05/2016,17.50,Other Equipment & Materials - General,Book Stores,GPC
Statement 19/04/2016 - 17/05/2016,E&T,Amazon UK Marketplace,10/05/2016,19.99,Other Expenditure - General,Book Stores,GPC
Statement 19/04/2016 - 17/05/2016,E&T,Amazon UK Marketplace,11/05/2016,12.50,Other Expenditure - General,Miscellaneous and Specialty Retail Stores,GPC
Statement 19/04/2016 - 17/05/2016,E&T,Amazon UK Marketplace,21/04/2016,6.65,Telephones - General,Miscellaneous and Specialty Retail Stores,GPC
Statement 19/04/2016 - 17/05/2016,E&T,Amazon UK Retail,13/05/2016,24.40,Other Equipment & Materials - General,Direct Marketers - Other,GPC
Statement 19/04/2016 - 17/05/2016,E&T,Amazon UK Retail,21/04/2016,40.83,Other Services - General,Direct Marketers - Other,GPC
Statement 19/04/2016 - 17/05/2016,E&T,CENTRAL ENG COOP,22/04/2016,4.24,Other Services - General,Department Stores,GPC
Statement 19/04/2016 - 17/05/2016,E&T,DVLA VEHICLE TAX,18/04/2016,167.50,Other Expenditure - General,Government Services-Not Elsewhere Classified,GPC
Statement 19/04/2016 - 17/05/2016,E&T,DVLA VEHICLE TAX,12/05/2016,232.50,R&M of Vehicles-Non Contract - General,Government Services-Not Elsewhere Classified,GPC
Statement 19/04/2016 - 17/05/2016,E&T,DVLA VEHICLE TAX,12/05/2016,237.50,R&M of Vehicles-Non Contract - General,Government Services-Not Elsewhere Classified,GPC
Statement 19/04/2016 - 17/05/2016,E&T,DVLA VEHICLE TAX,12/05/2016,297.50,R&M of Vehicles-Non Contract - General,Government Services-Not Elsewhere Classified,GPC
Statement 19/04/2016 - 17/05/2016,E&T,DVLA VEHICLE TAX,12/05/2016,232.50,R&M of Vehicles-Non Contract - General,Government Services-Not Elsewhere Classified,GPC
Statement 19/04/2016 - 17/05/2016,E&T,DVLA VEHICLE TAX,16/05/2016,202.50,R&M of Vehicles-Non Contract - General,Government Services-Not Elsewhere Classified,GPC
Statement 19/04/2016 - 17/05/2016,E&T,DVLA VEHICLE TAX,20/04/2016,232.50,Road Licences - General,Government Services-Not Elsewhere Classified,GPC
Statement 19/04/2016 - 17/05/2016,E&T,DVLA VEHICLE TAX,26/04/2016,232.50,Road Licences - General,Government Services-Not Elsewhere Classified,GPC
Statement 19/04/2016 - 17/05/2016,E&T,DVLA VEHICLE TAX,12/05/2016,212.50,Road Licences - General,Government Services-Not Elsewhere Classified,GPC
Statement 19/04/2016 - 17/05/2016,E&T,EASTMIDLANDSTRAINS,13/05/2016,87.00,Casual/Essential - General,Passenger Railways,GPC
Statement 19/04/2016 - 17/05/2016,E&T,EASTMIDLANDSTRAINS,19/04/2016,82.90,Public Transport -  Staff - General,Passenger Railways,GPC
Statement 19/04/2016 - 17/05/2016,E&T,EASTMIDLANDSTRAINS,22/04/2016,26.20,Public Transport -  Staff - General,Passenger Railways,GPC
Statement 19/04/2016 - 17/05/2016,E&T,EASTMIDLANDSTRAINS,22/04/2016,86.00,Public Transport -  Staff - General,Passenger Railways,GPC
Statement 19/04/2016 - 17/05/2016,E&T,EASTMIDLANDSTRAINS,26/04/2016,20.00,Public Transport -  Staff - General,Passenger Railways,GPC
Statement 19/04/2016 - 17/05/2016,E&T,EASTMIDLANDSTRAINS,06/05/2016,-10.20,Public Transport -  Staff - General,Passenger Railways,GPC
Statement 19/04/2016 - 17/05/2016,E&T,EASTMIDLANDSTRAINS,11/05/2016,289.20,Public Transport -  Staff - General,Passenger Railways,GPC
Statement 19/04/2016 - 17/05/2016,E&T,EASTMIDLANDSTRAINS,13/05/2016,38.40,Public Transport -  Staff - General,Passenger Railways,GPC
Statement 19/04/2016 - 17/05/2016,E&T,MILL ON THE SOAR,20/04/2016,59.70,Subsistence - General,"Drinking Places (Alcoholic Beverages)-Bars, Tavern",GPC
Statement 19/04/2016 - 17/05/2016,E&T,NRS HEALTHCARE,27/04/2016,17.75,Cleaning Materials - General,Laboratory/Medical/Dental/Ophthalmic Hospital Equi,GPC
Statement 19/04/2016 - 17/05/2016,E&T,SCCS,13/05/2016,101.75,Other Equipment & Materials - General,"Building Materials, Lumber Stores",GPC
Statement 19/04/2016 - 17/05/2016,E&T,THERMOSENSE LTD,21/04/2016,69.20,Private Contractors - General,Industrial Supplies Not Elsewhere Classified,GPC
Statement 19/04/2016 - 17/05/2016,E&T,UKPAPERROLLS.COM,22/04/2016,178.70,Private Contractors - General,"Stationary, Office Supplies, Printing and Writing",GPC
Statement 19/04/2016 - 17/05/2016,E&T,WWW.HEALTHANDCARE.CO.U,11/05/2016,17.50,Other Services - General,Laboratory/Medical/Dental/Ophthalmic Hospital Equi,GPC
Statement 19/04/2016 - 17/05/2016,E&T,WWW.INCARSAFETYCENTRE.,09/05/2016,240.02,Other Services - General,"Automotive Parts, Accessories Stores",GPC
Statement 19/04/2016 - 17/05/2016,E&T,WWW.LETSRECYCLE.COM,19/04/2016,160.43,Training Expenses - General,Advertising Services,GPC
Statement 19/04/2016 - 17/05/2016,E&T,WWW.THECARDNETWORK.CO.,12/05/2016,369.20,IT Equipment - General,"Stationery, Office, and School Supply Stores",GPC
Statement 19/04/2016 - 17/05/2016,E&T,WWW.TRP7LTD,10/05/2016,204.00,R & M of Buildings - General,Business Services-Not Elsewhere Classified,GPC
Statement 19/04/2016 - 17/05/2016,E&T,WWW.VOUCHEREXPRESS.CO.,28/04/2016,26.50,Other Expenditure - General,"Gift, Card, Novelty, and Souvenir Shops",GPC
Statement 19/04/2016 - 17/05/2016,Leicestershire Highways,Amazon UK Marketplace,21/04/2016,13.98,Books - General,Book Stores,GPC
Statement 19/04/2016 - 17/05/2016,Leicestershire Highways,Amazon UK Marketplace,06/05/2016,10.98,Books - General,Book Stores,GPC
Statement 19/04/2016 - 17/05/2016,Leicestershire Highways,Amazon UK Marketplace,13/05/2016,27.26,Books - General,Book Stores,GPC
Statement 19/04/2016 - 17/05/2016,Leicestershire Highways,Amazon UK Marketplace,21/04/2016,11.07,Materials - General,Miscellaneous and Specialty Retail Stores,GPC
Statement 19/04/2016 - 17/05/2016,Leicestershire Highways,Amazon UK Marketplace,21/04/2016,10.20,Materials - General,Miscellaneous and Specialty Retail Stores,GPC
Statement 19/04/2016 - 17/05/2016,Leicestershire Highways,Amazon UK Marketplace,27/04/2016,12.04,Materials - General,Miscellaneous and Specialty Retail Stores,GPC
Statement 19/04/2016 - 17/05/2016,Leicestershire Highways,Amazon UK Marketplace,28/04/2016,23.99,Materials - General,Miscellaneous and Specialty Retail Stores,GPC
Statement 19/04/2016 - 17/05/2016,Leicestershire Highways,Amazon UK Marketplace,06/05/2016,17.94,Materials - General,Miscellaneous and Specialty Retail Stores,GPC
Statement 19/04/2016 - 17/05/2016,Leicestershire Highways,Amazon UK Marketplace,13/05/2016,29.50,Materials - General,Miscellaneous and Specialty Retail Stores,GPC
Statement 19/04/2016 - 17/05/2016,Leicestershire Highways,Amazon UK Retail,21/04/2016,27.98,Other Expenditure - General,Direct Marketers - Other,GPC
Statement 19/04/2016 - 17/05/2016,Leicestershire Highways,Amazon UK Retail,27/04/2016,16.39,Other Expenditure - General,Direct Marketers - Other,GPC
Statement 19/04/2016 - 17/05/2016,Leicestershire Highways,Amazon UK Retail,11/05/2016,11.40,Other Expenditure - General,Direct Marketers - Other,GPC
Statement 19/04/2016 - 17/05/2016,Leicestershire Highways,ASTRA VEHICLE TECHNOLOGI,16/05/2016,479.49,R&M of Vehicles-Non Contract - General,Automotive Repair Shops (non-dealer),GPC
Statement 19/04/2016 - 17/05/2016,Leicestershire Highways,DVLA VEHICLE TAX,16/05/2016,167.50,R&M of Vehicles-Non Contract - General,Government Services-Not Elsewhere Classified,GPC
Statement 19/04/2016 - 17/05/2016,Leicestershire Highways,DVLA VEHICLE TAX,16/05/2016,232.50,R&M of Vehicles-Non Contract - General,Government Services-Not Elsewhere Classified,GPC
Statement 19/04/2016 - 17/05/2016,Leicestershire Highways,DVLA VEHICLE TAX,03/05/2016,652.50,Road Licences - General,Government Services-Not Elsewhere Classified,GPC
Statement 19/04/2016 - 17/05/2016,Leicestershire Highways,GEOGRAPHERS A-Z MAP CO,26/04/2016,71.94,Books - General,Book Stores,GPC
Statement 19/04/2016 - 17/05/2016,Leicestershire Highways,HOTELS COM129489894440,06/05/2016,149.00,Casual/Essential - General,Travel Agencies,GPC
Statement 19/04/2016 - 17/05/2016,Leicestershire Highways,POST OFFICE COUNTER,27/04/2016,282.50,Road Licences - General,Postage Stamps,GPC
Statement 19/04/2016 - 17/05/2016,Leicestershire Highways,STATIONERY OFFICE BOOK,19/04/2016,195.00,Books - General,Book Stores,GPC
Statement 19/04/2016 - 17/05/2016,Public Health,Amazon Svcs Europe SAR,19/04/2016,25.80,Operational Equipment - General,Book Stores,GPC
Statement 19/04/2016 - 17/05/2016,Public Health,GOTOCITRIX.COM,12/05/2016,260.80,IT Equipment - Software,Continuity/Subscription Merchants,GPC
Statement 19/04/2016 - 17/05/2016,Public Health,LOVE2SHOP.CO.UK,16/05/2016,100.00,Publicity/Marketing - General,"Civic, Social, and Fraternal Associations",GPC
Statement 19/04/2016 - 17/05/2016,Public Health,NCP LIMITED,03/05/2016,7.50,Subsistence - General,Automobile Parking Lots and Garages,GPC
Statement 19/04/2016 - 17/05/2016,Public Health,SNOWDOME LTD,25/04/2016,68.33,Consultants & Specialists - General,"Membership Clubs (Sports, Recreation, Athletic), C",GPC
Statement 19/04/2016 - 17/05/2016,Public Health,VODAFONE PAYG MBB TOPU,04/05/2016,10.00,Telephones - Mobile Phones,Telecommunication Service Including Local and Long,GPC
Statement 19/04/2016 - 17/05/2016,Public Health,WWW.DECTEK.CO.UK,13/05/2016,41.75,Operational Equipment - General,"Stationery, Office, and School Supply Stores",GPC
"**Amounts stated are net of VAT, except where VAT has not been recovered.",,,,,,,
